{"text_format":"1","workbook":"xlsx","n_sheets":7,"sheets":["0000","入力シート","出荷証明書雛型","VLOOK","シール保証書（作成見本）","エポ保証書（作成見本）","試験成績書(依頼書)"],"not_rendered":{"charts":0,"images":2,"macros":1,"external_links":0,"defined_names":14,"comments":2,"pivot_tables":0},"unopened":[],"bounds":{"document_bytes":16777216,"sheet_cells":100000,"rows_first":2000,"rows_last":500,"rows_between":2000,"halvings":0,"cell_chars":16384,"cell_head_chars":4096},"cells_cut":0,"cells_raw":0,"read":"whole","date_system":"1900"}

{"sheet":"0000","index":0,"n_rows":0,"n_cols":0,"rows_kept":0,"cut":false,"hidden":true,"merged":[]}

{"sheet":"入力シート","index":1,"n_rows":94,"n_cols":7,"rows_kept":94,"cut":false,"hidden":false,"merged":[[93,1,94,1],[93,2,94,2],[72,4,72,5]]}
[null,null,"＊マクロは必ず有効にしてください。",null,null,"＊訂正依頼する場合は訂正箇所の色を変えてください。"]
[null,"出荷証明書","商品明細は「出荷証明書雛型」タブに記入",null,null,"記入例"]
[null,"工事名称",null,null,null,"〇〇大規模修繕工事"]
[null,"出荷証明書宛名①",null,"御中","←敬称入力","〇〇管理組合","御中"]
[null,"元請会社①",null,null,null,"株式会社△△△建設"]
[null,"施工会社①",null,null,null,"□□□工業株式会社"]
[null,"出荷証明書宛名②",null,"御中","←敬称入力","〇　〇〇","様"]
[null,"元請会社②",null,null,null,"1234株式会社"]
[null,"施工会社②",null,null,null,"9999株式会社"]
[null,"書類発行日",null,null,null,"2022-04-01"]
[]
[null,"保証書（シール）","「シール保証書（作成見本）」タブで提出書類が確認できます。",null,null,"記入例"]
[null,"工事名称",{"$f":"C3","v":0},null,"出荷証明書から\nリンク","〇〇大規模修繕工事"]
[null,"保証書宛名①",{"$f":"C4","v":0},{"$f":"D4","v":"御中"},"出荷証明書から\nリンク","〇〇管理組合","御中"]
[null,"施工会社①",{"$f":"C6","v":0},null,"出荷証明書から\nリンク","□□□工業株式会社"]
[null,"保証書宛名②",{"$f":"C7&\"\"","v":""},{"$f":"D7","v":"御中"},"出荷証明書から\nリンク","〇　〇〇","様"]
[null,"施工会社②",{"$f":"C9&\"\"","v":""},null,"出荷証明書から\nリンク","□□□建設株式会社"]
[null,"書類発行日",null,null,null,"2022-05-01"]
[null,"現場住所",null,null,null,"東京都千代田区神田錦町444-4"]
[null,"施工箇所",null,null,null,"打継目地、建具、サッシ廻り目地他"]
[null,"施工仕様・施工量",null,null,null,"変成シリコーン系  500m、ポリウレタン系 400m"]
[null,"使用材料・使用量",null,null,null,"ボンドMSシール 20set、ボンドビューシール６９０９ 10set"]
[null,"保証開始日",null,null,null,"2022-03-01"]
[null,"保証期間",null,"年間（最長5年）",null,5]
[]
[null,"保証書（エポキシ）","「エポキシ保証書（作成見本）」タブで提出書類が確認できます。",null,null,"記入例"]
[null,"工事名称",{"$f":"C3&\"\"","v":""},null,"出荷証明書から\nリンク","〇〇大規模修繕工事"]
[null,"保証書宛名①",{"$f":"C4","v":0},{"$f":"D4&\"\"","v":"御中"},"出荷証明書から\nリンク","〇〇管理組合","御中"]
[null,"施工会社①",{"$f":"C6","v":0},null,"出荷証明書から\nリンク","□□□工業株式会社"]
[null,"保証書宛名②",{"$f":"C7&\"\"","v":""},{"$f":"D7&\"\"","v":"御中"},"出荷証明書から\nリンク","〇　〇〇","様"]
[null,"施工会社②",{"$f":"C9&\"\"","v":""},null,"出荷証明書から\nリンク","□□□建設株式会社"]
[null,"書類発行日",null,null,null,"2022-05-01"]
[null,"現場住所",{"$f":"C19","v":"00:00:00"},null,null,"東京都千代田区神田錦町444-4"]
[null,"施工箇所",null,null,null,"外壁"]
[null,"施工仕様・施工量",null,null,null,"欠損部・鉄筋爆裂部補修 100箇所"]
[null,"使用材料・使用量",null,null,null,"ボンドユニエポ補修用プライマー　５缶、ボンドKモルタル　10set"]
[null,"保証開始日",null,null,null,"2022-03-01"]
[null,"保証期間",null,"年間（最長5年）",null,5]
[]
[null,null,"発行依頼書類"]
[null,"出荷証明"]
[null,"保証書（シール）"]
[null,"保証書（エポ）"]
[]
[null,"送付先①","メール"]
[null,"会社名"]
[null,"ご担当者名"]
[null,{"$f":"IF(C45=\"郵送\",\"郵便番号\",\"\")","v":""}]
[null,{"$f":"IF(C45=\"郵送\",\"住所\",\"アドレス\")","v":"アドレス"}]
[null,{"$f":"IF(C45=\"郵送\",\"電話番号 　　　　　　　　ハイフン無しで記入\",\"\")","v":""}]
[null,"備考"]
[]
[null,"送付先②","メール"]
[null,"会社名"]
[null,"ご担当者名"]
[null,{"$f":"IF(C53=\"郵送\",\"郵便番号\",\"\")","v":""}]
[null,{"$f":"IF(C53=\"郵送\",\"住所\",\"アドレス\")","v":"アドレス"}]
[null,{"$f":"IF(C53=\"郵送\",\"電話番号 　　　　　　　　ハイフン無しで記入\",\"\")","v":""}]
[null,"備考"]
[]
[null,null,"その他資料（カタログ・品質保証書等）依頼フォーム"]
[null,"その他資料（選択）","　"]
[null,"部数(カタログのみ）",null,"部"]
[null,"備考"]
[null,null,"カタログ送付先"]
[null,"会社名"]
[null,"ご担当者名"]
[null,"郵便番号"]
[null,"住所"]
[null,"電話番号"]
[null,"その他資料（選択）","　"]
[null,"部数（カタログのみ）",null,"部"]
[null,"備考"]
[null,null,"カタログ送付先"]
[null,"会社名"]
[null,"ご担当者名"]
[null,"郵便番号"]
[null,"住所"]
[null,"電話番号"]
[null,"その他資料（選択）","　"]
[null,"部数（カタログのみ）",null,"部"]
[null,"備考"]
[null,null,"カタログ送付先"]
[null,"会社名"]
[null,"ご担当者名"]
[null,"郵便番号"]
[null,"住所"]
[null,"電話番号"]
[]
[]
[null,null,"代理店情報"]
[null,"代理店名","化研マテリアル株式会社"]
[null,"申請者名"]
[null,"依頼内容備考"]

{"sheet":"出荷証明書雛型","index":2,"n_rows":125,"n_cols":39,"rows_kept":125,"cut":false,"hidden":false,"merged":[[81,2,81,7],[81,8,81,9],[81,11,81,12],[81,14,81,15],[84,2,84,6],[82,2,82,7],[82,8,82,9],[82,11,82,12],[82,14,82,15],[83,2,83,7],[83,8,83,9],[83,11,83,12],[83,14,83,15],[78,2,78,7],[78,8,78,9],[78,11,78,12],[78,14,78,15],[79,2,79,7],[79,8,79,9],[79,11,79,12],[79,14,79,15],[80,2,80,7],[80,8,80,9],[80,11,80,12],[80,14,80,15],[75,2,75,7],[75,8,75,9],[75,11,75,12],[75,14,75,15],[76,2,76,7],[76,8,76,9],[76,11,76,12],[76,14,76,15],[77,2,77,7],[77,8,77,9],[77,11,77,12],[77,14,77,15],[72,2,72,7],[72,8,72,9],[72,11,72,12],[72,14,72,15],[73,2,73,7],[73,8,73,9],[73,11,73,12],[73,14,73,15],[74,2,74,7],[74,8,74,9],[74,11,74,12],[74,14,74,15],[69,2,69,7],[69,8,69,9],[69,11,69,12],[69,14,69,15],[70,2,70,7],[70,8,70,9],[70,11,70,12],[70,14,70,15],[71,2,71,7],[71,8,71,9],[71,11,71,12],[71,14,71,15],[66,2,66,7],[66,8,66,9],[66,11,66,12],[66,14,66,15],[67,2,67,7],[67,8,67,9],[67,11,67,12],[67,14,67,15],[68,2,68,7],[68,8,68,9],[68,11,68,12],[68,14,68,15],[63,2,63,7],[63,8,63,9],[63,11,63,12],[63,14,63,15],[64,2,64,7],[64,8,64,9],[64,11,64,12],[64,14,64,15],[65,2,65,7],[65,8,65,9],[65,11,65,12],[65,14,65,15],[60,1,60,2],[61,2,61,7],[61,8,61,10],[61,11,61,13],[61,14,61,16],[62,2,62,7],[62,8,62,9],[62,11,62,12],[62,14,62,15],[45,2,47,12],[49,10,49,16],[50,1,50,5],[53,1,53,2],[53,3,54,16],[54,1,54,2],[55,1,56,2],[55,3,56,16],[57,1,58,2],[57,3,58,16],[39,2,39,6],[37,2,37,7],[37,8,37,9],[37,11,37,12],[29,14,29,15],[30,2,30,7],[30,8,30,9],[30,11,30,12],[30,14,30,15],[38,2,38,7],[38,8,38,9],[38,11,38,12],[38,14,38,15],[35,2,35,7],[33,11,33,12],[33,14,33,15],[37,14,37,15],[36,2,36,7],[36,8,36,9],[36,11,36,12],[31,11,31,12],[31,14,31,15],[32,2,32,7],[32,8,32,9],[36,14,36,15],[35,14,35,15],[35,8,35,9],[35,11,35,12],[31,8,31,9],[34,2,34,7],[34,8,34,9],[34,11,34,12],[34,14,34,15],[32,11,32,12],[31,2,31,7],[27,2,27,7],[27,8,27,9],[27,11,27,12],[27,14,27,15],[33,2,33,7],[33,8,33,9],[28,2,28,7],[28,8,28,9],[28,11,28,12],[28,14,28,15],[32,14,32,15],[29,2,29,7],[29,8,29,9],[29,11,29,12],[24,2,24,7],[24,8,24,9],[24,11,24,12],[24,14,24,15],[25,2,25,7],[25,8,25,9],[25,11,25,12],[25,14,25,15],[26,8,26,9],[26,11,26,12],[26,14,26,15],[26,2,26,7],[21,2,21,7],[21,8,21,9],[21,11,21,12],[21,14,21,15],[20,2,20,7],[20,8,20,9],[20,11,20,12],[20,14,20,15],[23,2,23,7],[23,8,23,9],[23,11,23,12],[23,14,23,15],[22,2,22,7],[22,8,22,9],[22,11,22,12],[22,14,22,15],[17,2,17,7],[17,8,17,9],[17,11,17,12],[17,14,17,15],[16,2,16,7],[16,8,16,10],[16,11,16,13],[16,14,16,16],[19,2,19,7],[19,8,19,9],[19,11,19,12],[19,14,19,15],[18,2,18,7],[18,8,18,9],[18,11,18,12],[18,14,18,15],[13,34,13,35],[15,1,15,2],[15,31,15,32],[15,34,15,35],[10,34,10,35],[11,31,11,32],[11,34,11,35],[12,1,13,2],[12,3,13,16],[12,31,12,32],[13,19,14,33],[4,34,4,35],[5,1,5,5],[5,31,5,32],[5,34,5,35],[0,2,2,12],[4,10,4,16],[4,31,4,32],[12,34,12,35],[6,31,6,32],[6,34,6,35],[8,1,8,2],[8,3,9,16],[8,31,8,32],[8,34,8,35],[9,1,9,2],[9,31,9,32],[9,34,9,35],[10,1,11,2],[10,3,11,16],[10,31,10,32],[0,18,4,22]]}
[null,null,"出　　荷　　証　　明　　書",null,null,null,null,null,null,null,null,null,null,null,null,null,null,null,{"$f":"IF(入力シート!C7=\"\",\"\",\"宛名違い有り　　　　　　　　　　　　　↓参照\")","v":""},null,null,null,null,null,null,null,null,null,null,null,null,null,null,null,null,null,null,1]
[null,null,null,null,null,null,null,null,null,null,null,null,null,null,null,null,null,null,null,null,null,null,null,null,null,null,null,null,null,null,null,null,null,null,null,null,null,1]
[null,null,null,null,null,null,null,null,null,null,null,null,null,null,null,null,null,null,null,null,null,null,null,null,null,null,null,null,null,null,null,null,null,null,null,null,null,1]
[null,null,null,null,null,null,null,null,null,null,null,null,null,null,null,null,null,null,null,null,null,null,null,null,null,null,null,null,null,null,null,null,null,null,null,null,null,1]
[null,null,null,null,null,null,null,null,null,null,{"$f":"IF(入力シート!C10=\"\",\"　　年　　　 月　　　 日\",入力シート!C10)","v":"　　年　　　 月　　　 日"},null,null,null,null,null,null,null,null,null,null,null,null,null,null,null,null,null,null,null,null,null,null,null,null,null,null,1]
[null,{"$f":"入力シート!C4","v":0},null,null,null,null,{"$f":"入力シート!D4","v":"御中"},null,null,null,null,null,null,null,null,null,null,null,null,null,null,null,null,null,null,null,null,null,null,null,null,null,null,null,null,null,null,1]
[null,null,null,null,null,null,null,null,null,null,null,null,null,null,null,null,null,null,null,null,null,null,null,null,null,null,null,null,null,null,null,null,null,null,null,null,null,1]
[null,null,null,null,null,null,null,null,null,null,null,null,null,null,null,null,null,null,null,null,null,null,null,null,null,null,null,null,null,null,null,null,null,null,null,null,null,1]
[null,"工　事　名　称",null,{"$f":"入力シート!C3","v":0},null,null,null,null,null,null,null,null,null,null,null,null,null,null,null,null,null,null,null,null,null,null,null,null,null,null,null,null,null,null,null,null,null,1]
[null,"（現　場　名）",null,null,null,null,null,null,null,null,null,null,null,null,null,null,null,null,null,null,null,null,null,null,null,null,null,null,null,null,null,null,null,null,null,null,null,1]
[null,"元　請　業　者",null,{"$f":"入力シート!C5&\"\"","v":""},null,null,null,null,null,null,null,null,null,null,null,null,null,null,null,null,null,null,null,null,null,null,null,null,null,null,null,null,null,null,null,null,null,1]
[null,null,null,null,null,null,null,null,null,null,null,null,null,null,null,null,null,null,null,null,null,null,null,null,null,null,null,null,null,null,null,null,null,null,null,null,null,1]
[null,"施　工　業　者",null,{"$f":"入力シート!C6&\"\"","v":""},null,null,null,null,null,null,null,null,null,null,null,null,null,null,null,null,null,null,null,null,null,null,null,null,null,null,null,null,null,null,null,null,null,1]
[null,null,null,null,null,null,null,null,null,null,null,null,null,null,null,null,null,null,null,"ＮＯ入力一覧　（無いものは「ＶＬＯＯＫ」タブ参照）",null,null,null,null,null,null,null,null,null,null,null,null,null,null,null,null,null,1]
[null,null,null,null,null,null,null,null,null,null,null,null,null,null,null,null,null,null,null,null,null,null,null,null,null,null,null,null,null,null,null,null,null,null,null,null,null,1]
[null,"出　荷　内　容",null,null,null,null,null,null,null,null,null,null,null,null,null,null,null,null,null,null,"エポキシ系",null,null,null,null,"エポキシ系",null,null,null,null,"シーリング材",null,null,null,null,null,null,1]
[null,"出荷年月日","品　　　　　名",null,null,null,null,null,"荷姿",null,null,"出荷単位",null,null,"出荷量",null,null,"NO入力",null,"ＮＯ","品　　　　　名","荷姿",null,null,"ＮＯ","品　　　　　名","荷姿",null,null,"ＮＯ","品　　　　　名","荷姿",null,null,null,null,null,1]
[{"$f":"IF(R18=\"\",\"\",VLOOKUP(R18,VLOOK!$B$3:$M$511,2,FALSE))","v":""},null,{"$f":"IF(A18=\"\",\"\",VLOOKUP(A18,VLOOK!$C$3:$M$511,2,FALSE))","v":""},null,null,null,null,null,{"$f":"IF(A18=\"\",\"\",VLOOKUP(A18,VLOOK!$C$3:$M$448,3,FALSE))&\"\"","v":""},null,{"$f":"IF(A18=\"\",\"\",VLOOKUP(A18,VLOOK!$C$3:$M$448,5,FALSE))&\"\"","v":""},null,null,{"$f":"IF(A18=\"\",\"\",VLOOKUP(A18,VLOOK!$C$3:$M$448,8,FALSE))&\"\"","v":""},{"$f":"IFERROR(IF(C18=\"\",\"\",I18*L18),\"\")","v":""},null,{"$f":"IF(A18=\"\",\"\",VLOOKUP(A18,VLOOK!$C$3:$M$448,11,FALSE))&\"\"","v":""},null,null,"0","以下余白",null,null,null,30,"ボンドＥ２４２０",3,"ｋｇ",null,48,"ボンドＭＳシール",4,null,"Ｌ",null,null,null,1]
[{"$f":"IF(R19=\"\",\"\",VLOOKUP(R19,VLOOK!$B$3:$M$511,2,FALSE))","v":""},null,{"$f":"IF(A19=\"\",\"\",VLOOKUP(A19,VLOOK!$C$3:$M$511,2,FALSE))","v":""},null,null,null,null,null,{"$f":"IF(A19=\"\",\"\",VLOOKUP(A19,VLOOK!$C$3:$M$448,3,FALSE))&\"\"","v":""},null,{"$f":"IF(A19=\"\",\"\",VLOOKUP(A19,VLOOK!$C$3:$M$448,5,FALSE))&\"\"","v":""},null,null,{"$f":"IF(A19=\"\",\"\",VLOOKUP(A19,VLOOK!$C$3:$M$448,8,FALSE))&\"\"","v":""},{"$f":"IFERROR(IF(C19=\"\",\"\",I19*L19),\"\")","v":""},null,{"$f":"IF(A19=\"\",\"\",VLOOKUP(A19,VLOOK!$C$3:$M$448,11,FALSE))&\"\"","v":""},null,null,1,"ボンドＥ２０６",3,"ｋｇ",null,31,"ボンドＥ２４２０D",3,"ｋｇ",null,49,"ボンドＰＳシール",4,null,"Ｌ",null,null,null,1]
[{"$f":"IF(R20=\"\",\"\",VLOOKUP(R20,VLOOK!$B$3:$M$511,2,FALSE))","v":""},null,{"$f":"IF(A20=\"\",\"\",VLOOKUP(A20,VLOOK!$C$3:$M$511,2,FALSE))","v":""},null,null,null,null,null,{"$f":"IF(A20=\"\",\"\",VLOOKUP(A20,VLOOK!$C$3:$M$448,3,FALSE))&\"\"","v":""},null,{"$f":"IF(A20=\"\",\"\",VLOOKUP(A20,VLOOK!$C$3:$M$448,5,FALSE))&\"\"","v":""},null,null,{"$f":"IF(A20=\"\",\"\",VLOOKUP(A20,VLOOK!$C$3:$M$448,8,FALSE))&\"\"","v":""},"",null,{"$f":"IF(A20=\"\",\"\",VLOOKUP(A20,VLOOK!$C$3:$M$448,11,FALSE))&\"\"","v":""},null,null,2,"ボンドＥ２０６Ｓ",3,"ｋｇ",null,32,"ボンドＫモルタル",6,"ｋｇ",null,50,"ボンドビューシール６９０９",6,null,"Ｌ",null,null,null,1]
[{"$f":"IF(R21=\"\",\"\",VLOOKUP(R21,VLOOK!$B$3:$M$511,2,FALSE))","v":""},null,{"$f":"IF(A21=\"\",\"\",VLOOKUP(A21,VLOOK!$C$3:$M$511,2,FALSE))","v":""},null,null,null,null,null,{"$f":"IF(A21=\"\",\"\",VLOOKUP(A21,VLOOK!$C$3:$M$448,3,FALSE))&\"\"","v":""},null,{"$f":"IF(A21=\"\",\"\",VLOOKUP(A21,VLOOK!$C$3:$M$448,5,FALSE))&\"\"","v":""},null,null,{"$f":"IF(A21=\"\",\"\",VLOOKUP(A21,VLOOK!$C$3:$M$448,8,FALSE))&\"\"","v":""},{"$f":"IFERROR(IF(C21=\"\",\"\",I21*L21),\"\")","v":""},null,{"$f":"IF(A21=\"\",\"\",VLOOKUP(A21,VLOOK!$C$3:$M$448,11,FALSE))&\"\"","v":""},null,null,3,"ボンドＥ２０６Ｗ",3,"ｋｇ",null,33,"ボンドユニエポ補修用プライマー",500,"ｇ",null,99,"ボンドＭＳシール超耐久",4,null,"Ｌ",null,null,null,1]
[{"$f":"IF(R22=\"\",\"\",VLOOKUP(R22,VLOOK!$B$3:$M$511,2,FALSE))","v":""},null,{"$f":"IF(A22=\"\",\"\",VLOOKUP(A22,VLOOK!$C$3:$M$511,2,FALSE))","v":""},null,null,null,null,null,{"$f":"IF(A22=\"\",\"\",VLOOKUP(A22,VLOOK!$C$3:$M$448,3,FALSE))&\"\"","v":""},null,{"$f":"IF(A22=\"\",\"\",VLOOKUP(A22,VLOOK!$C$3:$M$448,5,FALSE))&\"\"","v":""},null,null,{"$f":"IF(A22=\"\",\"\",VLOOKUP(A22,VLOOK!$C$3:$M$448,8,FALSE))&\"\"","v":""},{"$f":"IFERROR(IF(C22=\"\",\"\",I22*L22),\"\")","v":""},null,{"$f":"IF(A22=\"\",\"\",VLOOKUP(A22,VLOOK!$C$3:$M$448,11,FALSE))&\"\"","v":""},null,null,4,"ボンドＥ２０７Ｄ",3,"ｋｇ",null,34,"ボンドシリンダーセット",null,null,null,51,"ボンドシールプライマー＃９",500,null,"ｇ",null,null,null,1]
[{"$f":"IF(R23=\"\",\"\",VLOOKUP(R23,VLOOK!$B$3:$M$511,2,FALSE))","v":""},null,{"$f":"IF(A23=\"\",\"\",VLOOKUP(A23,VLOOK!$C$3:$M$511,2,FALSE))","v":""},null,null,null,null,null,{"$f":"IF(A23=\"\",\"\",VLOOKUP(A23,VLOOK!$C$3:$M$448,3,FALSE))&\"\"","v":""},null,{"$f":"IF(A23=\"\",\"\",VLOOKUP(A23,VLOOK!$C$3:$M$448,5,FALSE))&\"\"","v":""},null,null,{"$f":"IF(A23=\"\",\"\",VLOOKUP(A23,VLOOK!$C$3:$M$448,8,FALSE))&\"\"","v":""},"",null,{"$f":"IF(A23=\"\",\"\",VLOOKUP(A23,VLOOK!$C$3:$M$448,11,FALSE))&\"\"","v":""},null,null,5,"ボンドＥ２０７ＤＳ",3,"ｋｇ",null,35,"ボンドはくりシールＯＮＥ",333,"ｍｌ",null,52,"ボンドシールプライマー＃７",500,null,"ｇ",null,null,null,1]
[{"$f":"IF(R24=\"\",\"\",VLOOKUP(R24,VLOOK!$B$3:$M$511,2,FALSE))","v":""},null,{"$f":"IF(A24=\"\",\"\",VLOOKUP(A24,VLOOK!$C$3:$M$511,2,FALSE))","v":""},null,null,null,null,null,{"$f":"IF(A24=\"\",\"\",VLOOKUP(A24,VLOOK!$C$3:$M$448,3,FALSE))&\"\"","v":""},null,{"$f":"IF(A24=\"\",\"\",VLOOKUP(A24,VLOOK!$C$3:$M$448,5,FALSE))&\"\"","v":""},null,null,{"$f":"IF(A24=\"\",\"\",VLOOKUP(A24,VLOOK!$C$3:$M$448,8,FALSE))&\"\"","v":""},"",null,{"$f":"IF(A24=\"\",\"\",VLOOKUP(A24,VLOOK!$C$3:$M$448,11,FALSE))&\"\"","v":""},null,null,6,"ボンドＥ２０７ＤＷ",3,"ｋｇ",null,36,"ボンドはくりシールクイック",333,"ｍｌ",null,53,"ボンドシールプライマー＃３８",500,null,"ｇ",null,null,null,1]
[{"$f":"IF(R25=\"\",\"\",VLOOKUP(R25,VLOOK!$B$3:$M$511,2,FALSE))","v":""},null,{"$f":"IF(A25=\"\",\"\",VLOOKUP(A25,VLOOK!$C$3:$M$511,2,FALSE))","v":""},null,null,null,null,null,{"$f":"IF(A25=\"\",\"\",VLOOKUP(A25,VLOOK!$C$3:$M$448,3,FALSE))&\"\"","v":""},null,{"$f":"IF(A25=\"\",\"\",VLOOKUP(A25,VLOOK!$C$3:$M$448,5,FALSE))&\"\"","v":""},null,null,{"$f":"IF(A25=\"\",\"\",VLOOKUP(A25,VLOOK!$C$3:$M$448,8,FALSE))&\"\"","v":""},"",null,{"$f":"IF(A25=\"\",\"\",VLOOKUP(A25,VLOOK!$C$3:$M$448,11,FALSE))&\"\"","v":""},null,null,7,"ボンドＥ２０８",3,"ｋｇ",null,37,"ボンドＵカットＯＮＥ",333,"ｍｌ",null,54,"ボンドシールカラーマスター　",160,null,"ｇ",null,null,null,1]
[{"$f":"IF(R26=\"\",\"\",VLOOKUP(R26,VLOOK!$B$3:$M$511,2,FALSE))","v":""},null,{"$f":"IF(A26=\"\",\"\",VLOOKUP(A26,VLOOK!$C$3:$M$511,2,FALSE))","v":""},null,null,null,null,null,{"$f":"IF(A26=\"\",\"\",VLOOKUP(A26,VLOOK!$C$3:$M$448,3,FALSE))&\"\"","v":""},null,{"$f":"IF(A26=\"\",\"\",VLOOKUP(A26,VLOOK!$C$3:$M$448,5,FALSE))&\"\"","v":""},null,null,{"$f":"IF(A26=\"\",\"\",VLOOKUP(A26,VLOOK!$C$3:$M$448,8,FALSE))&\"\"","v":""},"",null,{"$f":"IF(A26=\"\",\"\",VLOOKUP(A26,VLOOK!$C$3:$M$448,11,FALSE))&\"\"","v":""},null,null,8,"ボンドＥ２０８Ｓ",3,"ｋｇ",null,38,"ボンドエフレックスタイルワン　アプリパック",2,"ｋｇ",null,55,"ボンドシールカラーマスター　グレー",160,null,"ｇ",null,null,null,1]
[{"$f":"IF(R27=\"\",\"\",VLOOKUP(R27,VLOOK!$B$3:$M$511,2,FALSE))","v":""},null,{"$f":"IF(A27=\"\",\"\",VLOOKUP(A27,VLOOK!$C$3:$M$511,2,FALSE))","v":""},null,null,null,null,null,{"$f":"IF(A27=\"\",\"\",VLOOKUP(A27,VLOOK!$C$3:$M$448,3,FALSE))&\"\"","v":""},null,{"$f":"IF(A27=\"\",\"\",VLOOKUP(A27,VLOOK!$C$3:$M$448,5,FALSE))&\"\"","v":""},null,null,{"$f":"IF(A27=\"\",\"\",VLOOKUP(A27,VLOOK!$C$3:$M$448,8,FALSE))&\"\"","v":""},"",null,{"$f":"IF(A27=\"\",\"\",VLOOKUP(A27,VLOOK!$C$3:$M$448,11,FALSE))&\"\"","v":""},null,null,9,"ボンドＥ２０８Ｗ",3,"ｋｇ",null,39,"ボンドエフレックスタイルワン　グレー",2,"ｋｇ",null,56,"ボンドシールカラーマスター　コンクリートグレー",160,null,"ｇ",null,null,null,1]
[{"$f":"IF(R28=\"\",\"\",VLOOKUP(R28,VLOOK!$B$3:$M$511,2,FALSE))","v":""},null,{"$f":"IF(A28=\"\",\"\",VLOOKUP(A28,VLOOK!$C$3:$M$511,2,FALSE))","v":""},null,null,null,null,null,{"$f":"IF(A28=\"\",\"\",VLOOKUP(A28,VLOOK!$C$3:$M$448,3,FALSE))&\"\"","v":""},null,{"$f":"IF(A28=\"\",\"\",VLOOKUP(A28,VLOOK!$C$3:$M$448,5,FALSE))&\"\"","v":""},null,null,{"$f":"IF(A28=\"\",\"\",VLOOKUP(A28,VLOOK!$C$3:$M$448,8,FALSE))&\"\"","v":""},"",null,{"$f":"IF(A28=\"\",\"\",VLOOKUP(A28,VLOOK!$C$3:$M$448,11,FALSE))&\"\"","v":""},null,null,10,"ボンドＥ２０８ＳＳ",3,"ｋｇ",null,40,"ボンドエフレックスタイルワン　ダークグレー",2,"ｋｇ",null,57,"ボンドシールカラーマスター　ステンカラー",160,null,"ｇ",null,null,null,1]
[{"$f":"IF(R29=\"\",\"\",VLOOKUP(R29,VLOOK!$B$3:$M$511,2,FALSE))","v":""},null,{"$f":"IF(A29=\"\",\"\",VLOOKUP(A29,VLOOK!$C$3:$M$511,2,FALSE))","v":""},null,null,null,null,null,{"$f":"IF(A29=\"\",\"\",VLOOKUP(A29,VLOOK!$C$3:$M$448,3,FALSE))&\"\"","v":""},null,{"$f":"IF(A29=\"\",\"\",VLOOKUP(A29,VLOOK!$C$3:$M$448,5,FALSE))&\"\"","v":""},null,null,{"$f":"IF(A29=\"\",\"\",VLOOKUP(A29,VLOOK!$C$3:$M$448,8,FALSE))&\"\"","v":""},"",null,{"$f":"IF(A29=\"\",\"\",VLOOKUP(A29,VLOOK!$C$3:$M$448,11,FALSE))&\"\"","v":""},null,null,11,"ボンドＥ２０９",3,"ｋｇ",null,41,"ボンドエフレックスタイルワン　ブラック",2,"ｋｇ",null,58,"ボンドシールカラーマスター　ダークグレー",160,null,"ｇ",null,null,null,1]
[{"$f":"IF(R30=\"\",\"\",VLOOKUP(R30,VLOOK!$B$3:$M$511,2,FALSE))","v":""},null,{"$f":"IF(A30=\"\",\"\",VLOOKUP(A30,VLOOK!$C$3:$M$511,2,FALSE))","v":""},null,null,null,null,null,{"$f":"IF(A30=\"\",\"\",VLOOKUP(A30,VLOOK!$C$3:$M$448,3,FALSE))&\"\"","v":""},null,{"$f":"IF(A30=\"\",\"\",VLOOKUP(A30,VLOOK!$C$3:$M$448,5,FALSE))&\"\"","v":""},null,null,{"$f":"IF(A30=\"\",\"\",VLOOKUP(A30,VLOOK!$C$3:$M$448,8,FALSE))&\"\"","v":""},"",null,{"$f":"IF(A30=\"\",\"\",VLOOKUP(A30,VLOOK!$C$3:$M$448,11,FALSE))&\"\"","v":""},null,null,12,"ボンドＥ２０９Ｓ",3,"ｋｇ",null,42,"ボンドエフレックスタイルワン　ホワイト",2,"ｋｇ",null,59,"ボンドシールカラーマスター　ニューアイボリー",160,null,"ｇ",null,null,null,1]
[{"$f":"IF(R31=\"\",\"\",VLOOKUP(R31,VLOOK!$B$3:$M$511,2,FALSE))","v":""},null,{"$f":"IF(A31=\"\",\"\",VLOOKUP(A31,VLOOK!$C$3:$M$511,2,FALSE))","v":""},null,null,null,null,null,{"$f":"IF(A31=\"\",\"\",VLOOKUP(A31,VLOOK!$C$3:$M$448,3,FALSE))&\"\"","v":""},null,{"$f":"IF(A31=\"\",\"\",VLOOKUP(A31,VLOOK!$C$3:$M$448,5,FALSE))&\"\"","v":""},null,null,{"$f":"IF(A31=\"\",\"\",VLOOKUP(A31,VLOOK!$C$3:$M$448,8,FALSE))&\"\"","v":""},"",null,{"$f":"IF(A31=\"\",\"\",VLOOKUP(A31,VLOOK!$C$3:$M$448,11,FALSE))&\"\"","v":""},null,null,13,"ボンドＥ２０９Ｗ",3,"ｋｇ",null,43,"ボンドエフレックスタイルワン　ライトグレー",2,"ｋｇ",null,60,"ボンドシールカラーマスター　ニューアンバー",160,null,"ｇ",null,null,null,1]
[{"$f":"IF(R32=\"\",\"\",VLOOKUP(R32,VLOOK!$B$3:$M$511,2,FALSE))","v":""},null,{"$f":"IF(A32=\"\",\"\",VLOOKUP(A32,VLOOK!$C$3:$M$511,2,FALSE))","v":""},null,null,null,null,null,{"$f":"IF(A32=\"\",\"\",VLOOKUP(A32,VLOOK!$C$3:$M$448,3,FALSE))&\"\"","v":""},null,{"$f":"IF(A32=\"\",\"\",VLOOKUP(A32,VLOOK!$C$3:$M$448,5,FALSE))&\"\"","v":""},null,null,{"$f":"IF(A32=\"\",\"\",VLOOKUP(A32,VLOOK!$C$3:$M$448,8,FALSE))&\"\"","v":""},"",null,{"$f":"IF(A32=\"\",\"\",VLOOKUP(A32,VLOOK!$C$3:$M$448,11,FALSE))&\"\"","v":""},null,null,14,"ボンドＥ２０９",6,"ｋｇ",null,145,"ボンドＣＰアンカーピンＥ５５０",null,null,null,61,"ボンドシールカラーマスター　ニューブロンズ",160,null,"ｇ",null,null,null,1]
[{"$f":"IF(R33=\"\",\"\",VLOOKUP(R33,VLOOK!$B$3:$M$511,2,FALSE))","v":""},null,{"$f":"IF(A33=\"\",\"\",VLOOKUP(A33,VLOOK!$C$3:$M$511,2,FALSE))","v":""},null,null,null,null,null,{"$f":"IF(A33=\"\",\"\",VLOOKUP(A33,VLOOK!$C$3:$M$448,3,FALSE))&\"\"","v":""},null,{"$f":"IF(A33=\"\",\"\",VLOOKUP(A33,VLOOK!$C$3:$M$448,5,FALSE))&\"\"","v":""},null,null,{"$f":"IF(A33=\"\",\"\",VLOOKUP(A33,VLOOK!$C$3:$M$448,8,FALSE))&\"\"","v":""},"",null,{"$f":"IF(A33=\"\",\"\",VLOOKUP(A33,VLOOK!$C$3:$M$448,11,FALSE))&\"\"","v":""},null,null,15,"ボンドＥ２０９Ｓ",6,"ｋｇ",null,146,"ボンドＣＰアンカーピンＥ５７０",null,null,null,62,"ボンドシールカラーマスター　ブラック",160,null,"ｇ",null,null,null,1]
[{"$f":"IF(R34=\"\",\"\",VLOOKUP(R34,VLOOK!$B$3:$M$511,2,FALSE))","v":""},null,{"$f":"IF(A34=\"\",\"\",VLOOKUP(A34,VLOOK!$C$3:$M$511,2,FALSE))","v":""},null,null,null,null,null,{"$f":"IF(A34=\"\",\"\",VLOOKUP(A34,VLOOK!$C$3:$M$448,3,FALSE))&\"\"","v":""},null,{"$f":"IF(A34=\"\",\"\",VLOOKUP(A34,VLOOK!$C$3:$M$448,5,FALSE))&\"\"","v":""},null,null,{"$f":"IF(A34=\"\",\"\",VLOOKUP(A34,VLOOK!$C$3:$M$448,8,FALSE))&\"\"","v":""},"",null,{"$f":"IF(A34=\"\",\"\",VLOOKUP(A34,VLOOK!$C$3:$M$448,11,FALSE))&\"\"","v":""},null,null,16,"ボンドＥ２０９Ｗ",6,"ｋｇ",null,147,"ボンドＣＰアンカーピンＥ６１０",null,null,null,null,null,null,null,null,null,null,null,1]
[{"$f":"IF(R35=\"\",\"\",VLOOKUP(R35,VLOOK!$B$3:$M$511,2,FALSE))","v":""},null,{"$f":"IF(A35=\"\",\"\",VLOOKUP(A35,VLOOK!$C$3:$M$511,2,FALSE))","v":""},null,null,null,null,null,{"$f":"IF(A35=\"\",\"\",VLOOKUP(A35,VLOOK!$C$3:$M$448,3,FALSE))&\"\"","v":""},null,{"$f":"IF(A35=\"\",\"\",VLOOKUP(A35,VLOOK!$C$3:$M$448,5,FALSE))&\"\"","v":""},null,null,{"$f":"IF(A35=\"\",\"\",VLOOKUP(A35,VLOOK!$C$3:$M$448,8,FALSE))&\"\"","v":""},"",null,{"$f":"IF(A35=\"\",\"\",VLOOKUP(A35,VLOOK!$C$3:$M$448,11,FALSE))&\"\"","v":""},null,null,17,"ボンドＥ２０９ＳＳ",6,"ｋｇ",null,148,"ボンドＣＰアンカーピンＥ６５０",null,null,null,64,"ボンドシールカラーマスター　ライトグレー",160,null,"ｇ",null,null,null,1]
[{"$f":"IF(R36=\"\",\"\",VLOOKUP(R36,VLOOK!$B$3:$M$511,2,FALSE))","v":""},null,{"$f":"IF(A36=\"\",\"\",VLOOKUP(A36,VLOOK!$C$3:$M$511,2,FALSE))","v":""},null,null,null,null,null,{"$f":"IF(A36=\"\",\"\",VLOOKUP(A36,VLOOK!$C$3:$M$448,3,FALSE))&\"\"","v":""},null,{"$f":"IF(A36=\"\",\"\",VLOOKUP(A36,VLOOK!$C$3:$M$448,5,FALSE))&\"\"","v":""},null,null,{"$f":"IF(A36=\"\",\"\",VLOOKUP(A36,VLOOK!$C$3:$M$448,8,FALSE))&\"\"","v":""},"",null,{"$f":"IF(A36=\"\",\"\",VLOOKUP(A36,VLOOK!$C$3:$M$448,11,FALSE))&\"\"","v":""},null,null,18,"ボンドＥ６００",10,"ｋｇ",null,149,"ボンドＣＰアンカーピンＥ６７０",null,null,null,65,"ボンドシールカラーマスター　ニューホワイト",160,null,"ｇ",null,null,null,1]
[{"$f":"IF(R37=\"\",\"\",VLOOKUP(R37,VLOOK!$B$3:$M$511,2,FALSE))","v":""},null,{"$f":"IF(A37=\"\",\"\",VLOOKUP(A37,VLOOK!$C$3:$M$511,2,FALSE))","v":""},null,null,null,null,null,{"$f":"IF(A37=\"\",\"\",VLOOKUP(A37,VLOOK!$C$3:$M$448,3,FALSE))&\"\"","v":""},null,{"$f":"IF(A37=\"\",\"\",VLOOKUP(A37,VLOOK!$C$3:$M$448,5,FALSE))&\"\"","v":""},null,null,{"$f":"IF(A37=\"\",\"\",VLOOKUP(A37,VLOOK!$C$3:$M$448,8,FALSE))&\"\"","v":""},"",null,{"$f":"IF(A37=\"\",\"\",VLOOKUP(A37,VLOOK!$C$3:$M$448,11,FALSE))&\"\"","v":""},null,null,19,"ボンドＥ２３００Ｊ",15,"ｋｇ",null,null,"ピンネット",null,null,null,66,"ボンドＡＵシール",4,null,"Ｌ",null,null,null,1]
[{"$f":"IF(R38=\"\",\"\",VLOOKUP(R38,VLOOK!$B$3:$M$511,2,FALSE))","v":""},null,{"$f":"IF(A38=\"\",\"\",VLOOKUP(A38,VLOOK!$C$3:$M$511,2,FALSE))","v":""},null,null,null,null,null,{"$f":"IF(A38=\"\",\"\",VLOOKUP(A38,VLOOK!$C$3:$M$448,3,FALSE))&\"\"","v":""},null,{"$f":"IF(A38=\"\",\"\",VLOOKUP(A38,VLOOK!$C$3:$M$448,5,FALSE))&\"\"","v":""},null,null,{"$f":"IF(A38=\"\",\"\",VLOOKUP(A38,VLOOK!$C$3:$M$448,8,FALSE))&\"\"","v":""},"",null,{"$f":"IF(A38=\"\",\"\",VLOOKUP(A38,VLOOK!$C$3:$M$448,11,FALSE))&\"\"","v":""},null,null,20,"ボンドＥ２３００ＪＳ",15,"ｋｇ",null,"ＮＯ","品　　　　　名","荷姿",null,null,67,"ボンドＡＵクイック　",333,null,"ｍｌ",null,null,null,1]
[{"$f":"IF(R39=\"\",\"\",VLOOKUP(R39,VLOOK!$B$3:$M$511,2,FALSE))","v":""},null,{"$f":"IF(A39=\"\",\"\",VLOOKUP(A39,VLOOK!$C$3:$M$511,2,FALSE))","v":""},null,null,null,null,null,{"$f":"IF(A39=\"\",\"\",VLOOKUP(A39,VLOOK!$C$3:$M$448,3,FALSE))&\"\"","v":""},null,{"$f":"IF(A39=\"\",\"\",VLOOKUP(A39,VLOOK!$C$3:$M$448,5,FALSE))&\"\"","v":""},null,null,{"$f":"IF(A39=\"\",\"\",VLOOKUP(A39,VLOOK!$C$3:$M$448,8,FALSE))&\"\"","v":""},"",null,{"$f":"IF(A39=\"\",\"\",VLOOKUP(A39,VLOOK!$C$3:$M$448,11,FALSE))&\"\"","v":""},null,null,21,"ボンドＥ２３００ＪＷ",15,"ｋｇ",null,44,"ボンドエフレックスＦ１",10,"ｋｇ",null,68,"ボンドＡＵクイック　グレー",333,null,"ｍｌ",null,null,null,1]
[null,null,"上記の通り出荷したことを証明します。",null,null,null,null,null,null,null,null,null,null,null,null,null,null,null,null,22,"ボンドＲＭ骨材",15,"ｋｇ",null,45,"ボンドＦ１希釈剤",4,"Ｌ",null,69,"ボンドＡＵクイック　ホワイト",333,null,"ｍｌ",null,null,null,1]
[null,null,null,null,null,null,null,null,null,null,null,null,null,null,null,null,null,null,null,23,"ボンドＥ２３７０Ｍ",15,"ｋｇ",null,46,"ボンドカーボピンネット中塗り１材",20,"ｋｇ",null,70,"ボンドＭＳコーク　ノンブリードＬＭ",320,null,"ｍｌ",null,null,null,1]
[null,null,null,null,null,null,"コニシ株式会社",null,null,null,"関東支社",null,null,null,null,null,null,null,null,24,"ボンドＥ２３７０ＭＳ",15,"ｋｇ",null,47,"ボンドＶＭネット",100,"ｍ",null,71,"ボンドＭＳコーク　ノンブリードＬＭ　グレー",320,null,"ｍｌ",null,null,null,1]
[null,null,null,null,null,null,"〒３３８－０８３２",null,null,null,null,null,null,null,null,null,null,null,null,25,"ボンドＥ２３７０ＭＷ",15,"ｋｇ",null,144,"ボンドＣＰアンカーピンＡＬ６７０",null,null,null,72,"ボンドＭＳコーク　ノンブリードＬＭ　コンクリートグレー",320,null,"ｍｌ",null,null,null,1]
[null,null,null,null,null,null,"埼玉県さいたま市桜区西堀５－３－３５",null,null,null,null,null,null,null,null,null,null,null,null,26,"ボンドＥ２０５",4,"ｋｇ",null,150,"ボンドＣＰアンカーピンＮ５３０",null,null,null,73,"ボンドＭＳコーク　ノンブリードＬＭ　ステンカラー",320,null,"ｍｌ",null,null,null,1]
[null,null,null,null,null,null,"Ｔｅｌ．０４８－６３７－９９５０",null,null,null,null,null,null,null,null,null,null,null,null,27,"ボンドＥ２３００",15,"ｋｇ",null,151,"ボンドＣＰアンカーピンＮ５５０",null,null,null,74,"ボンドＭＳコーク　ノンブリードＬＭ　ダークグレー",320,null,"ｍｌ",null,null,null,1]
[null,null,"出　　荷　　証　　明　　書",null,null,null,null,null,null,null,null,null,null,null,null,null,null,null,null,28,"ボンドＥ２３００Ｓ",15,"ｋｇ",null,152,"ボンドＣＰアンカーピンＮ５７０",null,null,null,75,"ボンドＭＳコーク　ノンブリードＬＭ　ニューアイボリー",320,null,"ｍｌ",null,null,null,{"$f":"IF(AM46=\"\",\"\",1)","v":""},{"$f":"$AM$90","v":""}]
[null,null,null,null,null,null,null,null,null,null,null,null,null,null,null,null,null,null,null,29,"ボンドＥ２３００Ｗ",15,"ｋｇ",null,153,"ボンドＣＰアンカーピンＮ６１０",null,null,null,76,"ボンドＭＳコーク　ノンブリードＬＭ　ニューアンバー",320,null,"ｍｌ",null,null,null,"",{"$f":"$AM$90","v":""}]
[null,null,null,null,null,null,null,null,null,null,null,null,null,null,null,null,null,null,null,null,null,null,null,null,154,"ボンドＣＰアンカーピンＮ６５０",null,null,null,77,"ボンドＭＳコーク　ノンブリードＬＭ　ニューブロンズ",320,null,"ｍｌ",null,null,null,"",""]
[null,null,null,null,null,null,null,null,null,null,null,null,null,null,null,null,null,null,null,null,null,null,null,null,155,"ボンドＣＰアンカーピンＮ６７０",null,null,null,78,"ボンドＭＳコーク　ノンブリードＬＭ　ブラック",320,null,"ｍｌ",null,null,null,"",""]
[null,null,null,null,null,null,null,null,null,null,{"$f":"IF(入力シート!C10=\"\",\"　　年　　　 月　　　 日\",入力シート!C10)","v":"　　年　　　 月　　　 日"},null,null,null,null,null,null,null,null,null,null,null,null,null,156,"ボンドＣＰキャップ６．５",null,null,null,79,"ボンドＭＳコーク　ノンブリードＬＭ　ニューホワイト",320,null,"ｍｌ",null,null,null,"",""]
[null,{"$f":"入力シート!C7&\"\"","v":""},null,null,null,null,{"$f":"入力シート!D7&\"\"","v":"御中"},null,null,null,null,null,null,null,null,null,null,null,null,null,null,null,null,null,157,"ボンドＣＰキャップ９．０",null,null,null,80,"ボンドＭＳコーク　ノンブリードＬＭ　ライトグレー",320,null,"ｍｌ",null,null,null,"",""]
[null,null,null,null,null,null,null,null,null,null,null,null,null,null,null,null,null,null,null,null,null,null,null,null,null,null,null,null,null,81,"ボンドウレタンコーク",320,null,"ｍｌ",null,null,null,"",""]
[null,null,null,null,null,null,null,null,null,null,null,null,null,null,null,null,null,null,null,null,null,null,null,null,null,null,null,null,null,82,"ボンドウレタンコーク　アイボリー",320,null,"ｍｌ",null,null,null,"",""]
[null,"工　事　名　称",null,{"$f":"入力シート!C3&\"\"","v":""},null,null,null,null,null,null,null,null,null,null,null,null,null,null,null,null,null,null,null,null,null,null,null,null,null,83,"ボンドウレタンコーク　グレー",320,null,null,null,null,null,"",""]
[null,"（現　場　名）",null,null,null,null,null,null,null,null,null,null,null,null,null,null,null,null,null,null,null,null,null,null,null,null,null,null,null,84,"ボンドウレタンコーク　ホワイト",320,null,"ｍｌ",null,null,null,"",""]
[null,"元　請　業　者",null,{"$f":"入力シート!C8&\"\"","v":""},null,null,null,null,null,null,null,null,null,null,null,null,null,null,null,null,null,null,null,null,null,null,null,null,null,85,"ボンドウレタンコーク　ライトグレー",320,null,"ｍｌ",null,null,null,"",""]
[null,null,null,null,null,null,null,null,null,null,null,null,null,null,null,null,null,null,null,null,null,null,null,null,null,null,null,null,null,86,"ボンドシリコンコーク　",330,null,"ｍｌ",null,null,null,"",""]
[null,"施　工　業　者",null,{"$f":"入力シート!C9&\"\"","v":""},null,null,null,null,null,null,null,null,null,null,null,null,null,null,null,null,null,null,null,null,null,null,null,null,null,87,"ボンドシリコンコーク　アイボリー",330,null,"ｍｌ",null,null,null,"",""]
[null,null,null,null,null,null,null,null,null,null,null,null,null,null,null,null,null,null,null,null,null,null,null,null,null,null,null,null,null,88,"ボンドシリコンコーク　アルミ",330,null,"ｍｌ",null,null,null,"",""]
[null,null,null,null,null,null,null,null,null,null,null,null,null,null,null,null,null,null,null,null,null,null,null,null,null,null,null,null,null,89,"ボンドシリコンコーク　アンバー",330,null,"ｍｌ",null,null,null,"",""]
[null,"出　荷　内　容",null,null,null,null,null,null,null,null,null,null,null,null,null,null,null,null,null,null,null,null,null,null,null,null,null,null,null,90,"ボンドシリコンコーク　クリヤー",330,null,"ｍｌ",null,null,null,"",""]
[null,"出荷年月日","品　　　　　名",null,null,null,null,null,"荷姿",null,null,"出荷単位",null,null,"出荷量",null,null,"NO入力",null,null,null,null,null,null,null,null,null,null,null,91,"ボンドシリコンコーク　グレー",330,null,"ｍｌ",null,null,null,"",""]
[{"$f":"IF(R63=\"\",\"\",VLOOKUP(R63,VLOOK!$B$3:$M$572,2,FALSE))","v":""},null,{"$f":"IF(A63=\"\",\"\",VLOOKUP(A63,VLOOK!$C$3:$M$572,2,FALSE))","v":""},null,null,null,null,null,{"$f":"IF(A63=\"\",\"\",VLOOKUP(A63,VLOOK!$C$3:$M$572,3,FALSE))&\"\"","v":""},null,{"$f":"IF(A63=\"\",\"\",VLOOKUP(A63,VLOOK!$C$3:$M$572,5,FALSE))&\"\"","v":""},{"$f":"AP40&\"\"","v":""},null,{"$f":"IF(A63=\"\",\"\",VLOOKUP(A63,VLOOK!$C$3:$M$572,8,FALSE))&\"\"","v":""},{"$f":"IFERROR(IF(C63=\"\",\"\",I63*L63),\"\")","v":""},null,{"$f":"IF(A63=\"\",\"\",VLOOKUP(A63,VLOOK!$C$3:$M$572,11,FALSE))&\"\"","v":""},{"$f":"IF(AR40=\"\",\"\",AS40)","v":""},null,null,null,null,null,null,null,null,null,null,null,92,"ボンドシリコンコーク　ステンカラー",330,null,"ｍｌ",null,null,null,"",""]
[{"$f":"IF(R64=\"\",\"\",VLOOKUP(R64,VLOOK!$B$3:$M$572,2,FALSE))","v":""},null,{"$f":"IF(A64=\"\",\"\",VLOOKUP(A64,VLOOK!$C$3:$M$572,2,FALSE))","v":""},null,null,null,null,null,{"$f":"IF(A64=\"\",\"\",VLOOKUP(A64,VLOOK!$C$3:$M$572,3,FALSE))&\"\"","v":""},null,{"$f":"IF(A64=\"\",\"\",VLOOKUP(A64,VLOOK!$C$3:$M$572,5,FALSE))&\"\"","v":""},{"$f":"AP41&\"\"","v":""},null,{"$f":"IF(A64=\"\",\"\",VLOOKUP(A64,VLOOK!$C$3:$M$572,8,FALSE))&\"\"","v":""},{"$f":"IFERROR(IF(C64=\"\",\"\",I64*L64),\"\")","v":""},null,{"$f":"IF(A64=\"\",\"\",VLOOKUP(A64,VLOOK!$C$3:$M$572,11,FALSE))&\"\"","v":""},{"$f":"IF(AR41=\"\",\"\",AS41)","v":""},null,null,null,null,null,null,null,null,null,null,null,93,"ボンドシリコンコーク　ダークアイボリー",330,null,"ｍｌ",null,null,null,"",""]
[{"$f":"IF(R65=\"\",\"\",VLOOKUP(R65,VLOOK!$B$3:$M$572,2,FALSE))","v":""},null,{"$f":"IF(A65=\"\",\"\",VLOOKUP(A65,VLOOK!$C$3:$M$572,2,FALSE))","v":""},null,null,null,null,null,{"$f":"IF(A65=\"\",\"\",VLOOKUP(A65,VLOOK!$C$3:$M$572,3,FALSE))&\"\"","v":""},null,{"$f":"IF(A65=\"\",\"\",VLOOKUP(A65,VLOOK!$C$3:$M$572,5,FALSE))&\"\"","v":""},"",null,{"$f":"IF(A65=\"\",\"\",VLOOKUP(A65,VLOOK!$C$3:$M$572,8,FALSE))&\"\"","v":""},"",null,{"$f":"IF(A65=\"\",\"\",VLOOKUP(A65,VLOOK!$C$3:$M$572,11,FALSE))&\"\"","v":""},"",null,null,null,null,null,null,null,null,null,null,null,94,"ボンドシリコンコーク　ダークアルミ",330,null,"ｍｌ",null,null,null,"",""]
[{"$f":"IF(R66=\"\",\"\",VLOOKUP(R66,VLOOK!$B$3:$M$572,2,FALSE))","v":""},null,{"$f":"IF(A66=\"\",\"\",VLOOKUP(A66,VLOOK!$C$3:$M$572,2,FALSE))","v":""},null,null,null,null,null,{"$f":"IF(A66=\"\",\"\",VLOOKUP(A66,VLOOK!$C$3:$M$572,3,FALSE))&\"\"","v":""},null,{"$f":"IF(A66=\"\",\"\",VLOOKUP(A66,VLOOK!$C$3:$M$572,5,FALSE))&\"\"","v":""},"",null,{"$f":"IF(A66=\"\",\"\",VLOOKUP(A66,VLOOK!$C$3:$M$572,8,FALSE))&\"\"","v":""},"",null,{"$f":"IF(A66=\"\",\"\",VLOOKUP(A66,VLOOK!$C$3:$M$572,11,FALSE))&\"\"","v":""},"",null,null,null,null,null,null,null,null,null,null,null,95,"ボンドシリコンコーク　ダークブラウン",330,null,"ｍｌ",null,null,null,"",""]
[{"$f":"IF(R67=\"\",\"\",VLOOKUP(R67,VLOOK!$B$3:$M$572,2,FALSE))","v":""},null,{"$f":"IF(A67=\"\",\"\",VLOOKUP(A67,VLOOK!$C$3:$M$572,2,FALSE))","v":""},null,null,null,null,null,{"$f":"IF(A67=\"\",\"\",VLOOKUP(A67,VLOOK!$C$3:$M$572,3,FALSE))&\"\"","v":""},null,{"$f":"IF(A67=\"\",\"\",VLOOKUP(A67,VLOOK!$C$3:$M$572,5,FALSE))&\"\"","v":""},"",null,{"$f":"IF(A67=\"\",\"\",VLOOKUP(A67,VLOOK!$C$3:$M$572,8,FALSE))&\"\"","v":""},"",null,{"$f":"IF(A67=\"\",\"\",VLOOKUP(A67,VLOOK!$C$3:$M$572,11,FALSE))&\"\"","v":""},"",null,null,null,null,null,null,null,null,null,null,null,96,"ボンドシリコンコーク　ブラック",330,null,"ｍｌ",null,null,null,"",""]
[{"$f":"IF(R68=\"\",\"\",VLOOKUP(R68,VLOOK!$B$3:$M$572,2,FALSE))","v":""},null,{"$f":"IF(A68=\"\",\"\",VLOOKUP(A68,VLOOK!$C$3:$M$572,2,FALSE))","v":""},null,null,null,null,null,{"$f":"IF(A68=\"\",\"\",VLOOKUP(A68,VLOOK!$C$3:$M$572,3,FALSE))&\"\"","v":""},null,{"$f":"IF(A68=\"\",\"\",VLOOKUP(A68,VLOOK!$C$3:$M$572,5,FALSE))&\"\"","v":""},"",null,{"$f":"IF(A68=\"\",\"\",VLOOKUP(A68,VLOOK!$C$3:$M$572,8,FALSE))&\"\"","v":""},"",null,{"$f":"IF(A68=\"\",\"\",VLOOKUP(A68,VLOOK!$C$3:$M$572,11,FALSE))&\"\"","v":""},"",null,null,null,null,null,null,null,null,null,null,null,97,"ボンドシリコンコーク　ホワイト",330,null,"ｍｌ",null,null,null,"",""]
[{"$f":"IF(R69=\"\",\"\",VLOOKUP(R69,VLOOK!$B$3:$M$572,2,FALSE))","v":""},null,{"$f":"IF(A69=\"\",\"\",VLOOKUP(A69,VLOOK!$C$3:$M$572,2,FALSE))","v":""},null,null,null,null,null,{"$f":"IF(A69=\"\",\"\",VLOOKUP(A69,VLOOK!$C$3:$M$572,3,FALSE))&\"\"","v":""},null,{"$f":"IF(A69=\"\",\"\",VLOOKUP(A69,VLOOK!$C$3:$M$572,5,FALSE))&\"\"","v":""},"",null,{"$f":"IF(A69=\"\",\"\",VLOOKUP(A69,VLOOK!$C$3:$M$572,8,FALSE))&\"\"","v":""},"",null,{"$f":"IF(A69=\"\",\"\",VLOOKUP(A69,VLOOK!$C$3:$M$572,11,FALSE))&\"\"","v":""},"",null,null,null,null,null,null,null,null,null,null,null,98,"ボンドシリコンコーク　ライトグレー",330,null,"ｍｌ",null,null,null,"",""]
[{"$f":"IF(R70=\"\",\"\",VLOOKUP(R70,VLOOK!$B$3:$M$572,2,FALSE))","v":""},null,{"$f":"IF(A70=\"\",\"\",VLOOKUP(A70,VLOOK!$C$3:$M$572,2,FALSE))","v":""},null,null,null,null,null,{"$f":"IF(A70=\"\",\"\",VLOOKUP(A70,VLOOK!$C$3:$M$572,3,FALSE))&\"\"","v":""},null,{"$f":"IF(A70=\"\",\"\",VLOOKUP(A70,VLOOK!$C$3:$M$572,5,FALSE))&\"\"","v":""},"",null,{"$f":"IF(A70=\"\",\"\",VLOOKUP(A70,VLOOK!$C$3:$M$572,8,FALSE))&\"\"","v":""},"",null,{"$f":"IF(A70=\"\",\"\",VLOOKUP(A70,VLOOK!$C$3:$M$572,11,FALSE))&\"\"","v":""},"",null,null,null,null,null,null,null,null,null,null,null,100,"ボンドビルドシールＳＲ",4,null,"Ｌ",null,null,null,"",""]
[{"$f":"IF(R71=\"\",\"\",VLOOKUP(R71,VLOOK!$B$3:$M$572,2,FALSE))","v":""},null,{"$f":"IF(A71=\"\",\"\",VLOOKUP(A71,VLOOK!$C$3:$M$572,2,FALSE))","v":""},null,null,null,null,null,{"$f":"IF(A71=\"\",\"\",VLOOKUP(A71,VLOOK!$C$3:$M$572,3,FALSE))&\"\"","v":""},null,{"$f":"IF(A71=\"\",\"\",VLOOKUP(A71,VLOOK!$C$3:$M$572,5,FALSE))&\"\"","v":""},"",null,{"$f":"IF(A71=\"\",\"\",VLOOKUP(A71,VLOOK!$C$3:$M$572,8,FALSE))&\"\"","v":""},"",null,{"$f":"IF(A71=\"\",\"\",VLOOKUP(A71,VLOOK!$C$3:$M$572,11,FALSE))&\"\"","v":""},"",null,null,null,null,null,null,null,null,null,null,null,101,"ボンドビルドシールＳＲ用カラーマスター　",0.27,null,"Ｌ",null,null,null,"",""]
[{"$f":"IF(R72=\"\",\"\",VLOOKUP(R72,VLOOK!$B$3:$M$572,2,FALSE))","v":""},null,{"$f":"IF(A72=\"\",\"\",VLOOKUP(A72,VLOOK!$C$3:$M$572,2,FALSE))","v":""},null,null,null,null,null,{"$f":"IF(A72=\"\",\"\",VLOOKUP(A72,VLOOK!$C$3:$M$572,3,FALSE))&\"\"","v":""},null,{"$f":"IF(A72=\"\",\"\",VLOOKUP(A72,VLOOK!$C$3:$M$572,5,FALSE))&\"\"","v":""},"",null,{"$f":"IF(A72=\"\",\"\",VLOOKUP(A72,VLOOK!$C$3:$M$572,8,FALSE))&\"\"","v":""},"",null,{"$f":"IF(A72=\"\",\"\",VLOOKUP(A72,VLOOK!$C$3:$M$572,11,FALSE))&\"\"","v":""},"",null,null,null,null,null,null,null,null,null,null,null,102,"ボンドビルドシールＳＲ用カラーマスター　　ライトグレー",0.27,null,"Ｌ",null,null,null,"",""]
[{"$f":"IF(R73=\"\",\"\",VLOOKUP(R73,VLOOK!$B$3:$M$572,2,FALSE))","v":""},null,{"$f":"IF(A73=\"\",\"\",VLOOKUP(A73,VLOOK!$C$3:$M$572,2,FALSE))","v":""},null,null,null,null,null,{"$f":"IF(A73=\"\",\"\",VLOOKUP(A73,VLOOK!$C$3:$M$572,3,FALSE))&\"\"","v":""},null,{"$f":"IF(A73=\"\",\"\",VLOOKUP(A73,VLOOK!$C$3:$M$572,5,FALSE))&\"\"","v":""},"",null,{"$f":"IF(A73=\"\",\"\",VLOOKUP(A73,VLOOK!$C$3:$M$572,8,FALSE))&\"\"","v":""},"",null,{"$f":"IF(A73=\"\",\"\",VLOOKUP(A73,VLOOK!$C$3:$M$572,11,FALSE))&\"\"","v":""},"",null,null,null,null,null,null,null,null,null,null,null,103,"ボンドビルドシールＳＲ用カラーマスター　グレー",0.27,null,"Ｌ",null,null,null,"",""]
[{"$f":"IF(R74=\"\",\"\",VLOOKUP(R74,VLOOK!$B$3:$M$572,2,FALSE))","v":""},null,{"$f":"IF(A74=\"\",\"\",VLOOKUP(A74,VLOOK!$C$3:$M$572,2,FALSE))","v":""},null,null,null,null,null,{"$f":"IF(A74=\"\",\"\",VLOOKUP(A74,VLOOK!$C$3:$M$572,3,FALSE))&\"\"","v":""},null,{"$f":"IF(A74=\"\",\"\",VLOOKUP(A74,VLOOK!$C$3:$M$572,5,FALSE))&\"\"","v":""},"",null,{"$f":"IF(A74=\"\",\"\",VLOOKUP(A74,VLOOK!$C$3:$M$572,8,FALSE))&\"\"","v":""},"",null,{"$f":"IF(A74=\"\",\"\",VLOOKUP(A74,VLOOK!$C$3:$M$572,11,FALSE))&\"\"","v":""},"",null,null,null,null,null,null,null,null,null,null,null,104,"ボンドビルドシールＳＲ用カラーマスター　コンクリートグレー",0.27,null,"Ｌ",null,null,null,"",""]
[{"$f":"IF(R75=\"\",\"\",VLOOKUP(R75,VLOOK!$B$3:$M$572,2,FALSE))","v":""},null,{"$f":"IF(A75=\"\",\"\",VLOOKUP(A75,VLOOK!$C$3:$M$572,2,FALSE))","v":""},null,null,null,null,null,{"$f":"IF(A75=\"\",\"\",VLOOKUP(A75,VLOOK!$C$3:$M$572,3,FALSE))&\"\"","v":""},null,{"$f":"IF(A75=\"\",\"\",VLOOKUP(A75,VLOOK!$C$3:$M$572,5,FALSE))&\"\"","v":""},"",null,{"$f":"IF(A75=\"\",\"\",VLOOKUP(A75,VLOOK!$C$3:$M$572,8,FALSE))&\"\"","v":""},"",null,{"$f":"IF(A75=\"\",\"\",VLOOKUP(A75,VLOOK!$C$3:$M$572,11,FALSE))&\"\"","v":""},"",null,null,null,null,null,null,null,null,null,null,null,105,"ボンドビルドシールＳＲ用カラーマスター　ステンカラー",0.27,null,"Ｌ",null,null,null,"",""]
[{"$f":"IF(R76=\"\",\"\",VLOOKUP(R76,VLOOK!$B$3:$M$572,2,FALSE))","v":""},null,{"$f":"IF(A76=\"\",\"\",VLOOKUP(A76,VLOOK!$C$3:$M$572,2,FALSE))","v":""},null,null,null,null,null,{"$f":"IF(A76=\"\",\"\",VLOOKUP(A76,VLOOK!$C$3:$M$572,3,FALSE))&\"\"","v":""},null,{"$f":"IF(A76=\"\",\"\",VLOOKUP(A76,VLOOK!$C$3:$M$572,5,FALSE))&\"\"","v":""},"",null,{"$f":"IF(A76=\"\",\"\",VLOOKUP(A76,VLOOK!$C$3:$M$572,8,FALSE))&\"\"","v":""},"",null,{"$f":"IF(A76=\"\",\"\",VLOOKUP(A76,VLOOK!$C$3:$M$572,11,FALSE))&\"\"","v":""},"",null,null,null,null,null,null,null,null,null,null,null,106,"ボンドビルドシールＳＲ用カラーマスター　ダークグレー",0.27,null,"Ｌ",null,null,null,"",""]
[{"$f":"IF(R77=\"\",\"\",VLOOKUP(R77,VLOOK!$B$3:$M$572,2,FALSE))","v":""},null,{"$f":"IF(A77=\"\",\"\",VLOOKUP(A77,VLOOK!$C$3:$M$572,2,FALSE))","v":""},null,null,null,null,null,{"$f":"IF(A77=\"\",\"\",VLOOKUP(A77,VLOOK!$C$3:$M$572,3,FALSE))&\"\"","v":""},null,{"$f":"IF(A77=\"\",\"\",VLOOKUP(A77,VLOOK!$C$3:$M$572,5,FALSE))&\"\"","v":""},"",null,{"$f":"IF(A77=\"\",\"\",VLOOKUP(A77,VLOOK!$C$3:$M$572,8,FALSE))&\"\"","v":""},"",null,{"$f":"IF(A77=\"\",\"\",VLOOKUP(A77,VLOOK!$C$3:$M$572,11,FALSE))&\"\"","v":""},"",null,null,null,null,null,null,null,null,null,null,null,107,"ボンドビルドシールＳＲ用カラーマスター　ニューアイボリー",0.27,null,"Ｌ",null,null,null,"",""]
[{"$f":"IF(R78=\"\",\"\",VLOOKUP(R78,VLOOK!$B$3:$M$572,2,FALSE))","v":""},null,{"$f":"IF(A78=\"\",\"\",VLOOKUP(A78,VLOOK!$C$3:$M$572,2,FALSE))","v":""},null,null,null,null,null,{"$f":"IF(A78=\"\",\"\",VLOOKUP(A78,VLOOK!$C$3:$M$572,3,FALSE))&\"\"","v":""},null,{"$f":"IF(A78=\"\",\"\",VLOOKUP(A78,VLOOK!$C$3:$M$572,5,FALSE))&\"\"","v":""},"",null,{"$f":"IF(A78=\"\",\"\",VLOOKUP(A78,VLOOK!$C$3:$M$572,8,FALSE))&\"\"","v":""},"",null,{"$f":"IF(A78=\"\",\"\",VLOOKUP(A78,VLOOK!$C$3:$M$572,11,FALSE))&\"\"","v":""},"",null,null,null,null,null,null,null,null,null,null,null,108,"ボンドビルドシールＳＲ用カラーマスター　ニューアンバー",0.27,null,"Ｌ",null,null,null,"",""]
[{"$f":"IF(R79=\"\",\"\",VLOOKUP(R79,VLOOK!$B$3:$M$572,2,FALSE))","v":""},null,{"$f":"IF(A79=\"\",\"\",VLOOKUP(A79,VLOOK!$C$3:$M$572,2,FALSE))","v":""},null,null,null,null,null,{"$f":"IF(A79=\"\",\"\",VLOOKUP(A79,VLOOK!$C$3:$M$572,3,FALSE))&\"\"","v":""},null,{"$f":"IF(A79=\"\",\"\",VLOOKUP(A79,VLOOK!$C$3:$M$572,5,FALSE))&\"\"","v":""},"",null,{"$f":"IF(A79=\"\",\"\",VLOOKUP(A79,VLOOK!$C$3:$M$572,8,FALSE))&\"\"","v":""},"",null,{"$f":"IF(A79=\"\",\"\",VLOOKUP(A79,VLOOK!$C$3:$M$572,11,FALSE))&\"\"","v":""},"",null,null,null,null,null,null,null,null,null,null,null,109,"ボンドビルドシールＳＲ用カラーマスター　ニューブロンズ",0.27,null,"Ｌ",null,null,null,"",""]
[{"$f":"IF(R80=\"\",\"\",VLOOKUP(R80,VLOOK!$B$3:$M$572,2,FALSE))","v":""},null,{"$f":"IF(A80=\"\",\"\",VLOOKUP(A80,VLOOK!$C$3:$M$572,2,FALSE))","v":""},null,null,null,null,null,{"$f":"IF(A80=\"\",\"\",VLOOKUP(A80,VLOOK!$C$3:$M$572,3,FALSE))&\"\"","v":""},null,{"$f":"IF(A80=\"\",\"\",VLOOKUP(A80,VLOOK!$C$3:$M$572,5,FALSE))&\"\"","v":""},"",null,{"$f":"IF(A80=\"\",\"\",VLOOKUP(A80,VLOOK!$C$3:$M$572,8,FALSE))&\"\"","v":""},"",null,{"$f":"IF(A80=\"\",\"\",VLOOKUP(A80,VLOOK!$C$3:$M$572,11,FALSE))&\"\"","v":""},"",null,null,null,null,null,null,null,null,null,null,null,110,"ボンドビルドシールＳＲ用カラーマスター　ブラック",0.27,null,"Ｌ",null,null,null,"",""]
[{"$f":"IF(R81=\"\",\"\",VLOOKUP(R81,VLOOK!$B$3:$M$572,2,FALSE))","v":""},null,{"$f":"IF(A81=\"\",\"\",VLOOKUP(A81,VLOOK!$C$3:$M$572,2,FALSE))","v":""},null,null,null,null,null,{"$f":"IF(A81=\"\",\"\",VLOOKUP(A81,VLOOK!$C$3:$M$572,3,FALSE))&\"\"","v":""},null,{"$f":"IF(A81=\"\",\"\",VLOOKUP(A81,VLOOK!$C$3:$M$572,5,FALSE))&\"\"","v":""},"",null,{"$f":"IF(A81=\"\",\"\",VLOOKUP(A81,VLOOK!$C$3:$M$572,8,FALSE))&\"\"","v":""},"",null,{"$f":"IF(A81=\"\",\"\",VLOOKUP(A81,VLOOK!$C$3:$M$572,11,FALSE))&\"\"","v":""},"",null,null,null,null,null,null,null,null,null,null,null,111,"ボンドビルドシールＳＲ用カラーマスター　ホワイト　",0.27,null,"Ｌ",null,null,null,"",""]
[{"$f":"IF(R82=\"\",\"\",VLOOKUP(R82,VLOOK!$B$3:$M$572,2,FALSE))","v":""},null,{"$f":"IF(A82=\"\",\"\",VLOOKUP(A82,VLOOK!$C$3:$M$572,2,FALSE))","v":""},null,null,null,null,null,{"$f":"IF(A82=\"\",\"\",VLOOKUP(A82,VLOOK!$C$3:$M$572,3,FALSE))&\"\"","v":""},null,{"$f":"IF(A82=\"\",\"\",VLOOKUP(A82,VLOOK!$C$3:$M$572,5,FALSE))&\"\"","v":""},"",null,{"$f":"IF(A82=\"\",\"\",VLOOKUP(A82,VLOOK!$C$3:$M$572,8,FALSE))&\"\"","v":""},"",null,{"$f":"IF(A82=\"\",\"\",VLOOKUP(A82,VLOOK!$C$3:$M$572,11,FALSE))&\"\"","v":""},"",null,null,null,null,null,null,null,null,null,null,null,112,"ボンドビルドシールＳＲ硬化遅延剤",200,null,"ｇ",null,null,null,"",""]
[{"$f":"IF(R83=\"\",\"\",VLOOKUP(R83,VLOOK!$B$3:$M$572,2,FALSE))","v":""},null,{"$f":"IF(A83=\"\",\"\",VLOOKUP(A83,VLOOK!$C$3:$M$572,2,FALSE))","v":""},null,null,null,null,null,{"$f":"IF(A83=\"\",\"\",VLOOKUP(A83,VLOOK!$C$3:$M$572,3,FALSE))&\"\"","v":""},null,{"$f":"IF(A83=\"\",\"\",VLOOKUP(A83,VLOOK!$C$3:$M$572,5,FALSE))&\"\"","v":""},"",null,{"$f":"IF(A83=\"\",\"\",VLOOKUP(A83,VLOOK!$C$3:$M$572,8,FALSE))&\"\"","v":""},"",null,{"$f":"IF(A83=\"\",\"\",VLOOKUP(A83,VLOOK!$C$3:$M$572,11,FALSE))&\"\"","v":""},"",null,null,null,null,null,null,null,null,null,null,null,113,"ボンドシールプライマーシリコン用C",300,null,"ｍｌ",null,null,null,"",""]
[{"$f":"IF(R84=\"\",\"\",VLOOKUP(R84,VLOOK!$B$3:$M$572,2,FALSE))","v":""},null,{"$f":"IF(A84=\"\",\"\",VLOOKUP(A84,VLOOK!$C$3:$M$572,2,FALSE))","v":""},null,null,null,null,null,{"$f":"IF(A84=\"\",\"\",VLOOKUP(A84,VLOOK!$C$3:$M$572,3,FALSE))&\"\"","v":""},null,{"$f":"IF(A84=\"\",\"\",VLOOKUP(A84,VLOOK!$C$3:$M$572,5,FALSE))&\"\"","v":""},"",null,{"$f":"IF(A84=\"\",\"\",VLOOKUP(A84,VLOOK!$C$3:$M$572,8,FALSE))&\"\"","v":""},"",null,{"$f":"IF(A84=\"\",\"\",VLOOKUP(A84,VLOOK!$C$3:$M$572,11,FALSE))&\"\"","v":""},"",null,null,null,null,null,null,null,null,null,null,null,114,"ボンドシールプライマーシリコン用Ｆ",300,null,"ｍｌ",null,null,null,"",""]
[null,null,"上記の通り出荷したことを証明します。",null,null,null,null,null,null,null,null,null,null,null,null,null,null,null,null,null,null,null,null,null,null,null,null,null,null,null,null,null,null,null,null,null,null,"",""]
[null,null,null,null,null,null,null,null,null,null,null,null,null,null,null,null,null,null,null,null,null,null,null,null,null,null,null,null,null,null,null,null,null,null,null,null,null,"",""]
[null,null,null,null,null,null,"コニシ株式会社",null,null,null,"関東支社",null,null,null,null,null,null,null,null,null,null,null,null,null,null,null,null,null,null,null,null,null,null,null,null,null,null,"",""]
[null,null,null,null,null,null,"〒３３８－０８３２",null,null,null,null,null,null,null,null,null,null,null,null,null,null,null,null,null,null,null,null,null,null,null,null,null,null,null,null,null,null,"",""]
[null,null,null,null,null,null,"埼玉県さいたま市桜区西堀５－３－３５",null,null,null,null,null,null,null,null,null,null,null,null,null,null,null,null,null,null,null,null,null,null,null,null,null,null,null,null,null,null,"",""]
[null,null,null,null,null,null,"Ｔｅｌ．０４８－６３７－９９５０",null,null,null,null,null,null,null,null,null,null,null,null,null,null,null,null,null,null,null,null,null,null,null,null,null,null,null,null,null,null,{"$f":"IF(AM90=\"\",\"\",1)","v":""},{"$f":"IF(B51=\"\",\"\",1)","v":""}]
[]
[]
[]
[]
[]
[]
[]
[]
[]
[null,"工事名称",{"$f":"D9","v":0}]
[null,"元請業者",{"$f":"D11","v":""}]
[null,"施工業者",{"$f":"D13","v":""}]
[]
[null,"品名",{"$f":"C18","v":""}]
[null,null,""]
[null,null,""]
[null,null,""]
[null,null,""]
[null,null,""]
[null,null,""]
[null,null,""]
[null,null,""]
[null,null,""]
[null,null,""]
[null,null,""]
[null,null,""]
[null,null,""]
[null,null,""]
[null,null,""]
[null,null,""]
[null,null,""]
[null,null,""]
[null,null,""]
[null,null,""]
[null,null,""]

{"sheet":"VLOOK","index":3,"n_rows":416,"n_cols":14,"rows_kept":416,"cut":false,"hidden":false,"merged":[]}
[null,0,1,2,3,4,5,6,7,8,9,10,11]
[null,"ＮＯ","コード","品　　　　　名","荷姿",null,null,"出荷単位",null,null,"出荷量"]
[null,0,1,"以下余白"]
["え２０６ｓ*",1,"1156015003*","ボンドＥ２０６",3,null,"ｋｇ",null,null,"set",{"$f":"E4*H4","v":0},null,{"$f":"IF(D4=\"\",\"\",G4)","v":"ｋｇ"}]
["え２０６ｓ",2,1156015003,"ボンドＥ２０６Ｓ",3,null,"ｋｇ",null,null,"set",0,null,"ｋｇ"]
["え２０６ｗ",3,1156090003,"ボンドＥ２０６Ｗ",3,null,"ｋｇ",null,null,"set",0,null,"ｋｇ"]
["え２０７ｄｓ*",4,"1156190003*","ボンドＥ２０７Ｄ",3,null,"ｋｇ",null,null,"set",0,null,"ｋｇ"]
["え２０７ｄｓ",5,1156190003,"ボンドＥ２０７ＤＳ",3,null,"ｋｇ",null,null,"set",0,null,"ｋｇ"]
["え２０７ｄｗ",6,1156641003,"ボンドＥ２０７ＤＷ",3,null,"ｋｇ",null,null,"set",0,null,"ｋｇ"]
["え２０８ｓ*",7,"1156063003*","ボンドＥ２０８",3,null,"ｋｇ",null,null,"set",0,null,"ｋｇ"]
["え２０８ｓ",8,1156063003,"ボンドＥ２０８Ｓ",3,null,"ｋｇ",null,null,"set",0,null,"ｋｇ"]
["え２０８ｗ",9,1156093003,"ボンドＥ２０８Ｗ",3,null,"ｋｇ",null,null,"set",0,null,"ｋｇ"]
[null,10,1156064003,"ボンドＥ２０８ＳＳ",3,null,"ｋｇ",null,null,"set",{"$f":"E13*H13","v":0},null,{"$f":"IF(D13=\"\",\"\",G13)","v":"ｋｇ"}]
["え２０９ｓ３*",11,"1156045003*","ボンドＥ２０９",3,null,"ｋｇ",null,null,"set",0,null,"ｋｇ"]
["え２０９ｓ３",12,1156045003,"ボンドＥ２０９Ｓ",3,null,"ｋｇ",null,null,"set",0,null,"ｋｇ"]
["え２０９ｗ３",13,1156042003,"ボンドＥ２０９Ｗ",3,null,"ｋｇ",null,null,"set",0,null,"ｋｇ"]
["え２０９ｓ６*",14,"1156045006*","ボンドＥ２０９",6,null,"ｋｇ",null,null,"set",0,null,"ｋｇ"]
["え２０９ｓ６",15,1156045006,"ボンドＥ２０９Ｓ",6,null,"ｋｇ",null,null,"set",0,null,"ｋｇ"]
["え２０９ｗ６",16,1156182006,"ボンドＥ２０９Ｗ",6,null,"ｋｇ",null,null,"set",0,null,"ｋｇ"]
[null,17,1156195006,"ボンドＥ２０９ＳＳ",6,null,"ｋｇ",null,null,"set",{"$f":"E20*H20","v":0},null,{"$f":"IF(D20=\"\",\"\",G20)","v":"ｋｇ"}]
["え６００",18,1156442410,"ボンドＥ６００",10,null,"ｋｇ",null,null,"set",0,null,"ｋｇ"]
["え２３００ｊｓ*",19,"1157021015*","ボンドＥ２３００Ｊ",15,null,"ｋｇ",null,null,"set",0,null,"ｋｇ"]
["え２３００ｊｓ",20,1157021015,"ボンドＥ２３００ＪＳ",15,null,"ｋｇ",null,null,"set",0,null,"ｋｇ"]
["え２３００ｊｗ",21,1157027015,"ボンドＥ２３００ＪＷ",15,null,"ｋｇ",null,null,"set",0,null,"ｋｇ"]
["1157414015",22,1157414015,"ボンドＲＭ骨材",15,null,"ｋｇ",null,null,"袋",0,null,"ｋｇ"]
["え２３７０ｍｓ*",23,"1157096015*","ボンドＥ２３７０Ｍ",15,null,"ｋｇ",null,null,"set",0,null,"ｋｇ"]
["え２３７０ｍｓ",24,1157096015,"ボンドＥ２３７０ＭＳ",15,null,"ｋｇ",null,null,"set",0,null,"ｋｇ"]
["え２３７０ｍｗ",25,1157099015,"ボンドＥ２３７０ＭＷ",15,null,"ｋｇ",null,null,"set",0,null,"ｋｇ"]
["え２０５",26,1156623004,"ボンドＥ２０５",4,null,"ｋｇ",null,null,"set",0,null,"ｋｇ"]
["え２３００ｓ*",27,"1157078415*","ボンドＥ２３００",15,null,"ｋｇ",null,null,"set",0,null,"ｋｇ"]
["え２３００ｓ",28,1157078415,"ボンドＥ２３００Ｓ",15,null,"ｋｇ",null,null,"set",0,null,"ｋｇ"]
["え２３００ｗ",29,1157108415,"ボンドＥ２３００Ｗ",15,null,"ｋｇ",null,null,"set",0,null,"ｋｇ"]
["え２４２０３",30,1157111003,"ボンドＥ２４２０",3,null,"ｋｇ",null,null,"set",0,null,"ｋｇ"]
["え２４２０ｄ",31,1157138003,"ボンドＥ２４２０D",3,null,"ｋｇ",null,null,"set",0,null,"ｋｇ"]
["ｋ",32,1157527108,"ボンドＫモルタル",6,null,"ｋｇ",null,null,"set",0,null,"ｋｇ"]
["ゆに",33,1156534250,"ボンドユニエポ補修用プライマー",500,null,"ｇ",null,null,"缶",0,null,"ｇ"]
["しりんだ",34,1371707000,"ボンドシリンダーセット",null,null,null,null,null,null,{"$f":"IF(A37=\"\",\"\",E37*H37)","v":0},null,"ｓｅｔ"]
["はく",35,1154092333,"ボンドはくりシールＯＮＥ",333,null,"ｍｌ",null,null,"本",{"$f":"E38*H38","v":0},null,{"$f":"IF(D38=\"\",\"\",G38)","v":"ｍｌ"}]
[null,36,1154126333,"ボンドはくりシールクイック",333,null,"ｍｌ",null,null,"本",{"$f":"E39*H39","v":0},null,{"$f":"IF(D39=\"\",\"\",G39)","v":"ｍｌ"}]
["う",37,1156555333,"ボンドＵカットＯＮＥ",333,null,"ｍｌ",null,null,"本",0,null,"ｍｌ"]
["たいるぐれ*",38,"1160027002*","ボンドエフレックスタイルワン　アプリパック",2,null,"ｋｇ",null,null,"本",0,null,"ｋｇ"]
["たいるぐれ",39,1160027002,"ボンドエフレックスタイルワン　アプリパック　グレー",2,null,"ｋｇ",null,null,"本",0,null,"ｋｇ"]
["たいるだくぐれ",40,1160029002,"ボンドエフレックスタイルワン　アプリパック　ダークグレー",2,null,"ｋｇ",null,null,"本",0,null,"ｋｇ"]
["たいるぶら",41,1160024002,"ボンドエフレックスタイルワン　アプリパック　ブラック",2,null,"ｋｇ",null,null,"本",0,null,"ｋｇ"]
["たいるほわ",42,1160025002,"ボンドエフレックスタイルワン　アプリパック　ホワイト",2,null,"ｋｇ",null,null,"本",{"$f":"E45*H45","v":0},null,"ｋｇ"]
["たいるらいとぐ",43,1160028002,"ボンドエフレックスタイルワン　アプリパック　ライトグレー",2,null,"ｋｇ",null,null,"本",0,null,"ｋｇ"]
["ｆ１",44,1156892010,"ボンドエフレックスＦ１",10,null,"ｋｇ",null,null,"缶",0,null,"ｋｇ"]
["ｆ１きしゃく",45,1156965104,"ボンドＦ１希釈剤",4,null,"Ｌ",null,null,"缶",0,null,"Ｌ"]
[null,46,1154119020,"ボンドカーボピンネット中塗り１材",20,null,"ｋｇ",null,null,"袋",0,null,"ｋｇ"]
["ｖｍ",47,1371697001,"ボンドＶＭネット",100,null,"ｍ",null,null,"巻",0,null,"ｍ"]
["ｍｓ",48,1161386104,"ボンドＭＳシール",4,null,"Ｌ",null,null,"set",0,null,"Ｌ"]
["ｐｓ",49,1161516104,"ボンドＰＳシール",4,null,"Ｌ",null,null,"set",0,null,"Ｌ"]
["びゅ",50,1161597106,"ボンドビューシール６９０９",6,null,"Ｌ",null,null,"set",0,null,"Ｌ"]
["しるぷら９",51,1161918250,"ボンドシールプライマー＃９",500,null,"ｇ",null,null,"缶",0,null,"ｇ"]
["しるぷら７",52,1161916250,"ボンドシールプライマー＃７",500,null,"ｇ",null,null,"缶",0,null,"ｇ"]
[null,53,1161919250,"ボンドシールプライマー＃３８",500,null,"ｇ",null,null,"缶",{"$f":"E56*H56","v":0},null,{"$f":"IF(D56=\"\",\"\",G56)","v":"ｇ"}]
["しるからぐれ*",54,"1161950002*","ボンドシールカラーマスター　",160,null,"ｇ",null,null,"個",0,null,"ｇ"]
["しるからぐれ",55,1161950002,"ボンドシールカラーマスター　グレー",160,null,"ｇ",null,null,"個",0,null,"ｇ"]
["しるからこん",56,1161950012,"ボンドシールカラーマスター　コンクリートグレー",160,null,"ｇ",null,null,"個",0,null,"ｇ"]
["しるからすて",57,1161950009,"ボンドシールカラーマスター　ステンカラー",160,null,"ｇ",null,null,"個",0,null,"ｇ"]
["しるだくぐれ",58,1161950004,"ボンドシールカラーマスター　ダークグレー",160,null,"ｇ",null,null,"個",0,null,"ｇ"]
["しるからにゆあい",59,1161950003,"ボンドシールカラーマスター　ニューアイボリー",160,null,"ｇ",null,null,"個",0,null,"ｇ"]
["しるからにゆあん",60,1161950011,"ボンドシールカラーマスター　ニューアンバー",160,null,"ｇ",null,null,"個",0,null,"ｇ"]
["しるからにゆぶろ",61,1161950010,"ボンドシールカラーマスター　ニューブロンズ",160,null,"ｇ",null,null,"個",0,null,"ｇ"]
["しるからぶら",62,1161950005,"ボンドシールカラーマスター　ブラック",160,null,"ｇ",null,null,"個",0,null,"ｇ"]
["しるかららいとぐ",64,1161950008,"ボンドシールカラーマスター　ライトグレー",160,null,"ｇ",null,null,"個",0,null,"ｇ"]
[null,65,1161950013,"ボンドシールカラーマスター　ニューホワイト",160,null,"ｇ",null,null,"個",{"$f":"E67*H67","v":0},null,{"$f":"IF(D67=\"\",\"\",G67)","v":"ｇ"}]
["あう",66,1161820104,"ボンドＡＵシール",4,null,"Ｌ",null,null,"set",0,null,"Ｌ"]
["あうぐれ*",67,"1162190333*","ボンドＡＵクイック　",333,null,"ｍｌ",null,null,"本",0,null,"ｍｌ"]
["あうぐれ",68,1162190333,"ボンドＡＵクイック　グレー",333,null,"ｍｌ",null,null,"本",0,null,"ｍｌ"]
["あうほわ",69,1162191333,"ボンドＡＵクイック　ホワイト",333,null,"ｍｌ",null,null,"本",0,null,"ｍｌ"]
["ｍｓぐれ*",70,"116497433*","ボンドＭＳコーク　ノンブリードＬＭ",320,null,"ｍｌ",null,null,"本",0,null,"ｍｌ"]
["ｍｓぐれ",71,1164974332,"ボンドＭＳコーク　ノンブリードＬＭ　グレー",320,null,"ｍｌ",null,null,"本",0,null,"ｍｌ"]
["ｍｓこんぐれ",72,1164973332,"ボンドＭＳコーク　ノンブリードＬＭ　コンクリートグレー",320,null,"ｍｌ",null,null,"本",0,null,"ｍｌ"]
["ｍっすてん",73,1164977332,"ボンドＭＳコーク　ノンブリードＬＭ　ステンカラー",320,null,"ｍｌ",null,null,"本",0,null,"ｍｌ"]
["ｍｓだくぐれ",74,1164975332,"ボンドＭＳコーク　ノンブリードＬＭ　ダークグレー",320,null,"ｍｌ",null,null,"本",0,null,"ｍｌ"]
["ｍｓにゅあい",75,1164976332,"ボンドＭＳコーク　ノンブリードＬＭ　ニューアイボリー",320,null,"ｍｌ",null,null,"本",0,null,"ｍｌ"]
["ｍｓにゅあん",76,1164978332,"ボンドＭＳコーク　ノンブリードＬＭ　ニューアンバー",320,null,"ｍｌ",null,null,"本",0,null,"ｍｌ"]
["ｍｓにゅぶろ",77,1164979332,"ボンドＭＳコーク　ノンブリードＬＭ　ニューブロンズ",320,null,"ｍｌ",null,null,"本",0,null,"ｍｌ"]
["ｍｓぶら",78,1164980332,"ボンドＭＳコーク　ノンブリードＬＭ　ブラック",320,null,"ｍｌ",null,null,"本",0,null,"ｍｌ"]
["ｍしょわ",79,1164971332,"ボンドＭＳコーク　ノンブリードＬＭ　ニューホワイト",320,null,"ｍｌ",null,null,"本",0,null,"ｍｌ"]
["ｍｓらいとぐ",80,1164972332,"ボンドＭＳコーク　ノンブリードＬＭ　ライトグレー",320,null,"ｍｌ",null,null,"本",0,null,"ｍｌ"]
["うれぐれ*",81,"1162505332*","ボンドウレタンコーク",320,null,"ｍｌ",null,null,"本",0,null,"ｍｌ"]
["うれあい",82,1162503332,"ボンドウレタンコーク　アイボリー",320,null,"ｍｌ",null,null,"本",0,null,"ｍｌ"]
["うれぐれ",83,1162505332,"ボンドウレタンコーク　グレー",320,null,"ｍｌ",null,null,"本",0,null,"ｍｌ"]
["うれほわ",84,1162506332,"ボンドウレタンコーク　ホワイト",320,null,"ｍｌ",null,null,"本",0,null,"ｍｌ"]
["うれらいとぐ",85,1162513332,"ボンドウレタンコーク　ライトグレー",320,null,"ｍｌ",null,null,"本",0,null,"ｍｌ"]
["しりぐれ*",86,"1162602333*","ボンドシリコンコーク　",330,null,"ｍｌ",null,null,"本",0,null,"ｍｌ"]
["しりあい",87,1162600333,"ボンドシリコンコーク　アイボリー",330,null,"ｍｌ",null,null,"本",0,null,"ｍｌ"]
["しりある",88,1162601333,"ボンドシリコンコーク　アルミ",330,null,"ｍｌ",null,null,"本",0,null,"ｍｌ"]
["しりあん",89,1162610333,"ボンドシリコンコーク　アンバー",330,null,"ｍｌ",null,null,"本",0,null,"ｍｌ"]
["しりくり",90,1162603333,"ボンドシリコンコーク　クリヤー",330,null,"ｍｌ",null,null,"本",0,null,"ｍｌ"]
["しりぐれ",91,1162602333,"ボンドシリコンコーク　グレー",330,null,"ｍｌ",null,null,"本",0,null,"ｍｌ"]
["しりすて",92,1162564333,"ボンドシリコンコーク　ステンカラー",330,null,"ｍｌ",null,null,"本",0,null,"ｍｌ"]
["しりだくあい",93,1162611333,"ボンドシリコンコーク　ダークアイボリー",330,null,"ｍｌ",null,null,"本",0,null,"ｍｌ"]
["しりだくある",94,1162565333,"ボンドシリコンコーク　ダークアルミ",330,null,"ｍｌ",null,null,"本",0,null,"ｍｌ"]
["しりだくぶら",95,1162604333,"ボンドシリコンコーク　ダークブラウン",330,null,"ｍｌ",null,null,"本",0,null,"ｍｌ"]
["しりぶら",96,1162606333,"ボンドシリコンコーク　ブラック",330,null,"ｍｌ",null,null,"本",0,null,"ｍｌ"]
["しりほわ",97,1162607333,"ボンドシリコンコーク　ホワイト",330,null,"ｍｌ",null,null,"本",0,null,"ｍｌ"]
["しりらいとぐ",98,1162612333,"ボンドシリコンコーク　ライトグレー",330,null,"ｍｌ",null,null,"本",0,null,"ｍｌ"]
[null,99,1161397104,"ボンドＭＳシール超耐久",4,null,"Ｌ",null,null,"set",0,null,"Ｌ"]
["びるど",100,1161625104,"ボンドビルドシールＳＲ",4,null,"Ｌ",null,null,"set",{"$f":"E102*H102","v":0},null,{"$f":"IF(D102=\"\",\"\",G102)","v":"Ｌ"}]
["びるどぐれ*",101,"1161633327*","ボンドビルドシールＳＲ用カラーマスター　",0.27,null,"Ｌ",null,null,"個",0,null,"Ｌ"]
["びるどらいとぐ",102,1161632327,"ボンドビルドシールＳＲ用カラーマスター　　ライトグレー",0.27,null,"Ｌ",null,null,"個",0,null,"Ｌ"]
["びるどぐれ",103,1161633327,"ボンドビルドシールＳＲ用カラーマスター　グレー",0.27,null,"Ｌ",null,null,"個",0,null,"Ｌ"]
["びるどこんぐれ",104,1161631327,"ボンドビルドシールＳＲ用カラーマスター　コンクリートグレー",0.27,null,"Ｌ",null,null,"個",0,null,"Ｌ"]
["びるどすて",105,1161635327,"ボンドビルドシールＳＲ用カラーマスター　ステンカラー",0.27,null,"Ｌ",null,null,"個",0,null,"Ｌ"]
["びるどだくぐれ",106,1161634327,"ボンドビルドシールＳＲ用カラーマスター　ダークグレー",0.27,null,"Ｌ",null,null,"個",0,null,"Ｌ"]
["びるどにゆあい",107,1161630327,"ボンドビルドシールＳＲ用カラーマスター　ニューアイボリー",0.27,null,"Ｌ",null,null,"個",0,null,"Ｌ"]
["びるどにゆあん",108,1161636327,"ボンドビルドシールＳＲ用カラーマスター　ニューアンバー",0.27,null,"Ｌ",null,null,"個",0,null,"Ｌ"]
["びるどにゆぶろ",109,1161637327,"ボンドビルドシールＳＲ用カラーマスター　ニューブロンズ",0.27,null,"Ｌ",null,null,"個",0,null,"Ｌ"]
["びるどぶら",110,1161638327,"ボンドビルドシールＳＲ用カラーマスター　ブラック",0.27,null,"Ｌ",null,null,"個",0,null,"Ｌ"]
["びるどほわ",111,1161629327,"ボンドビルドシールＳＲ用カラーマスター　ホワイト　",0.27,null,"Ｌ",null,null,"個",0,null,"Ｌ"]
["びるどちえん",112,1161628020,"ボンドビルドシールＳＲ硬化遅延剤",200,null,"ｇ",null,null,"個",0,null,"ｇ"]
["しりこんｃ",113,1161626330,"ボンドシールプライマーシリコン用C",300,null,"ｍｌ",null,null,"缶",0,null,"ｍｌ"]
["しりこんｆ",114,1161627330,"ボンドシールプライマーシリコン用Ｆ",300,null,"ｍｌ",null,null,"缶",0,null,"ｍｌ"]
["えふぐれ*",115,"1159731333*","ボンドエフレックス",333,null,"ｍｌ",null,null,"本",0,null,"ｍｌ"]
["えふぐれ",116,1159731333,"ボンドエフレックス　グレー",333,null,"ｍｌ",null,null,"本",0,null,"ｍｌ"]
["えふほわ",117,1159730333,"ボンドエフレックス　ホワイト",333,null,"ｍｌ",null,null,"本",0,null,"ｍｌ"]
["ｓｒんｂ５０３３３",118,"1366201003*","ＳＲシールＮＢ５０　",333,null,"ｍｌ",null,null,"本",0,null,"ｍｌ"]
["ｓｒんｂ５０６",119,"1366203003*","ＳＲシールＮＢ５０　",6,null,"Ｌ",null,null,"缶",0,null,"Ｌ"]
["ｓｒｓ７０３３３",120,"1177500364*","ＳＲシールＳ７０　",333,null,"ｍｌ",null,null,"本",0,null,"ｍｌ"]
["ｓｒｓ７０６",121,"1177700364*","ＳＲシールＳ７０　",6,null,"Ｌ",null,null,"缶",0,null,"Ｌ"]
[null,122,"－","アロンアルファＧＥＬ１０",50,null,"ｇ",null,null,"本",0,null,"ｇ"]
["とりねお",123,1371952201,"トリネオＴＳＳ１８１０Ｙ",100,null,"㎡",null,null,"巻",0,null,"㎡"]
[null,124,1371670033,"トレカクロスＵＴ７０－２０Ｇ－３３",50,null,"ｍ",null,null,"巻",0,null,"ｍ"]
[null,125,1371670050,"トレカクロスＵＴ７０－２０Ｇ－５０",50,null,"ｍ",null,null,"巻",0,null,"ｍ"]
[null,126,1371662000,"トレカラミネートＴＬ５２０",50,null,"ｍ",null,null,"巻",0,null,"ｍ"]
["あうほわ*",127,"1162191333*","ボンドＡＵクイック　",333,null,"ｍｌ",null,null,"本",0,null,"ｍｌ"]
[null,128,1158083016,"ボンドＡコートＦ　Ｎ－７５",16.5,null,"ｋｇ",null,null,"set",0,null,"ｋｇ"]
["ｂｃざがね",129,1371708000,"ボンドＢＣ座金",null,null,null,null,null,null,null,null,"個"]
["ｃｈ００５ん２０",130,1101585020,"ボンドＣＨ００５Ｎ",20,null,"ｋｇ",null,null,"箱",{"$f":"E132*H132","v":0},null,{"$f":"IF(D132=\"\",\"\",G132)","v":"ｋｇ"}]
["ｃｈ００８ん２０",131,1101588020,"ボンドＣＨ００８Ｎ",20,null,"ｋｇ",null,null,"箱",0,null,"ｋｇ"]
["ｃｈ１８２０",136,1101081020,"ボンドＣＨ１８",20,null,"ｋｇ",null,null,"箱",0,null,"ｋｇ"]
["ｃｈ３８",137,1101130003,"ボンドＣＨ３８",3,null,"ｋｇ",null,null,"袋",0,null,"ｋｇ"]
["ｃｋ１１３",139,1111917003,"ボンドＣＫ１１",3,null,"ｋｇ",null,null,"缶",0,null,"ｋｇ"]
["うちこみ６５０",142,1371642000,"ボンドＣＰアンカー６５０打ち込み棒ＦＨ－６５０",null,null,null,null,null,null,{"$f":"IF(A133=\"\",\"\",E137*H137)","v":0},null,"個"]
["うちこみ６７０",143,1371642001,"ボンドＣＰアンカー６７０打ち込み棒ＦＨ－６７０",null,null,null,null,null,null,{"$f":"IF(#REF!=\"\",\"\",E138*H138)","v":{"$error":"#REF!"}},null,"個"]
["あｌ６７０",144,1371633001,"ボンドＣＰアンカーピンＡＬ６７０",null,null,null,null,null,null,null,null,"本"]
["え５５０",145,1371637025,"ボンドＣＰアンカーピンＥ５５０",null,null,null,null,null,null,null,null,"本"]
["え５７０",146,1371637026,"ボンドＣＰアンカーピンＥ５７０",null,null,null,null,null,null,null,null,"本"]
["え６１０",147,1371637002,"ボンドＣＰアンカーピンＥ６１０",null,null,null,null,null,null,null,null,"本"]
["え６５０",148,1371637008,"ボンドＣＰアンカーピンＥ６５０",null,null,null,null,null,null,null,null,"本"]
["え６７０",149,1371637007,"ボンドＣＰアンカーピンＥ６７０",null,null,null,null,null,null,null,null,"本"]
["ｎ５３０",150,1371634003,"ボンドＣＰアンカーピンＮ５３０",null,null,null,null,null,null,null,null,"本"]
["ｎ５５０",151,1371637019,"ボンドＣＰアンカーピンＮ５５０",null,null,null,null,null,null,null,null,"本"]
["ｎ５７０",152,1371637022,"ボンドＣＰアンカーピンＮ５７０",null,null,null,null,null,null,null,null,"本"]
["ｎ６１０",153,1371637012,"ボンドＣＰアンカーピンＮ６１０",null,null,null,null,null,null,null,null,"本"]
["ｎ６５０",154,1371637005,"ボンドＣＰアンカーピンＮ６５０",null,null,null,null,null,null,null,null,"本"]
["ｎ６７０",155,1371637003,"ボンドＣＰアンカーピンＮ６７０",null,null,null,null,null,null,null,null,"本"]
["ｃｐ６．５",156,1372820001,"ボンドＣＰキャップ６．５",null,null,null,null,null,null,{"$f":"IF(A139=\"\",\"\",E151*H151)","v":0},null,"個"]
["ｃｐ９．０",157,1372820002,"ボンドＣＰキャップ９．０",null,null,null,null,null,null,{"$f":"IF(A140=\"\",\"\",E152*H152)","v":0},null,"個"]
["ｃｘ５０",158,1101747020,"ボンドＣＸ５０",20,null,"ｋｇ",null,null,"箱",{"$f":"E153*H153","v":0},null,{"$f":"IF(D153=\"\",\"\",G153)","v":"ｋｇ"}]
["え１２００ｓ*",159,"1157003006*","ボンドＥ１２００",6,null,"ｋｇ",null,null,"set",0,null,"ｋｇ"]
["え１２００ｓ",160,1157003006,"ボンドＥ１２００Ｓ",6,null,"ｋｇ",null,null,"set",0,null,"ｋｇ"]
["え１２００ｗ",161,1157012006,"ボンドＥ１２００Ｗ",6,null,"ｋｇ",null,null,"set",0,null,"ｋｇ"]
["え２００１",162,1156003001,"ボンドＥ２００",1,null,"ｋｇ",null,null,"set",0,null,"ｋｇ"]
["え２００５",163,1156003005,"ボンドＥ２００",5,null,"ｋｇ",null,null,"set",0,null,"ｋｇ"]
["え２０００ｓ*",165,"1157046290*","ボンドＥ２０００",900,null,"ｇ",null,null,"set",0,null,"ｇ"]
["え２０００ｓ",166,1157046290,"ボンドＥ２０００Ｓ",900,null,"ｇ",null,null,"set",0,null,"ｇ"]
["え２０００ｗ",167,1157055290,"ボンドＥ２０００Ｗ",900,null,"ｇ",null,null,"set",0,null,"ｇ"]
[null,168,1157083290,"ボンドＥ２０００ＳＳ",900,null,"ｇ",null,null,"set",{"$f":"E162*H162","v":0},null,{"$f":"IF(D162=\"\",\"\",G162)","v":"ｇ"}]
[null,169,"1157046012*","ボンドＥ２０００",12,null,"ｋｇ",null,null,"set",{"$f":"E163*H163","v":0},null,{"$f":"IF(D163=\"\",\"\",G163)","v":"ｋｇ"}]
[null,170,1157046012,"ボンドＥ２０００Ｓ",12,null,"ｋｇ",null,null,"set",{"$f":"E164*H164","v":0},null,{"$f":"IF(D164=\"\",\"\",G164)","v":"ｋｇ"}]
[null,171,1157055012,"ボンドＥ２０００Ｗ",12,null,"ｋｇ",null,null,"set",{"$f":"E165*H165","v":0},null,{"$f":"IF(D165=\"\",\"\",G165)","v":"ｋｇ"}]
[null,172,1157083012,"ボンドＥ２０００ＳＳ",12,null,"ｋｇ",null,null,"set",{"$f":"E166*H166","v":0},null,{"$f":"IF(D166=\"\",\"\",G166)","v":"ｋｇ"}]
["え２０６ｗ*",173,"1156090003*","ボンドＥ２０６",3,null,"ｋｇ",null,null,"set",0,null,"ｋｇ"]
["え２０７ｄｗ*",174,"1156641003*","ボンドＥ２０７Ｄ",3,null,"ｋｇ",null,null,"set",0,null,"ｋｇ"]
["え２３０ｇ４００",175,1158114340,"ボンドＥ２３０Ｇ",400,null,"ｍｌ",null,null,"本",0,null,"ｍｌ"]
["え２３０ｇ９００",176,1158114390,"ボンドＥ２３０Ｇ",900,null,"ｍｌ",null,null,"本",0,null,"ｍｌ"]
["え２５００ｓ*",178,"1154053015*","ボンドＥ２５００",15,null,"ｋｇ",null,null,"set",0,null,"ｋｇ"]
["え２５００ｓ",179,1154053015,"ボンドＥ２５００Ｓ",15,null,"ｋｇ",null,null,"set",0,null,"ｋｇ"]
["え２５００ｗ",180,1154056015,"ボンドＥ２５００Ｗ",15,null,"ｋｇ",null,null,"set",0,null,"ｋｇ"]
["え２６０１ｓ*",181,"1156070003*","ボンドＥ２６０１",3,null,"ｋｇ",null,null,"set",0,null,"ｋｇ"]
["え２６０１ｓ",182,1156070003,"ボンドＥ２６０１Ｓ",3,null,"ｋｇ",null,null,"set",0,null,"ｋｇ"]
["え２６０１ｗ",183,1156073003,"ボンドＥ２６０１Ｗ",3,null,"ｋｇ",null,null,"set",0,null,"ｋｇ"]
[null,185,"1157583006*","ボンドＥ２９００Ｊ",6,null,"ｋｇ",null,null,"set",{"$f":"E177*H177","v":0},null,{"$f":"IF(D177=\"\",\"\",G177)","v":"ｋｇ"}]
[null,186,1157583006,"ボンドＥ２９００ＪＳ",6,null,"ｋｇ",null,null,"set",{"$f":"E178*H178","v":0},null,{"$f":"IF(D178=\"\",\"\",G178)","v":"ｋｇ"}]
[null,187,1157584006,"ボンドＥ２９００ＪＷ",6,null,"ｋｇ",null,null,"set",{"$f":"E179*H179","v":0},null,{"$f":"IF(D179=\"\",\"\",G179)","v":"ｋｇ"}]
["え３５０ｒ２０",188,1154300020,"ボンドＥ３５０Ｒ",20,null,"ｋｇ",null,null,"set",0,null,"ｋｇ"]
["え３８０９００",189,1156135290,"ボンドＥ３８０",900,null,"ｇ",null,null,"set",0,null,"ｇ"]
["え３８０６",190,1156135006,"ボンドＥ３８０",6,null,"ｋｇ",null,null,"set",0,null,"ｋｇ"]
["え３８０１０",191,1156135010,"ボンドＥ３８０",10,null,"ｋｇ",null,null,"set",0,null,"ｋｇ"]
["え３９０６",192,1156662006,"ボンドＥ３９０",6,null,"ｋｇ",null,null,"set",0,null,"ｋｇ"]
["え３９０６ｔｌ",193,1158117006,"ボンドＥ３９０ＴＬ",6,null,"ｋｇ",null,null,"set",0,null,"ｋｇ"]
["え３９５ｓ*",194,"1156602015*","ボンドＥ３９５",15,null,"ｋｇ",null,null,"set",0,null,"ｋｇ"]
["え３９５ｓ",195,1156602015,"ボンドＥ３９５Ｓ",15,null,"ｋｇ",null,null,"set",0,null,"ｋｇ"]
["え３９５ｗ",196,1156626015,"ボンドＥ３９５Ｗ",15,null,"ｋｇ",null,null,"set",0,null,"ｋｇ"]
["え４８８",197,1158086020,"ボンドＥ４８８",20,null,"ｋｇ",null,null,"set",0,null,"ｋｇ"]
["え８１０ｌｓ*",198,"1156689007*","ボンドＥ８１０Ｌ",7,null,"ｋｇ",null,null,"set",0,null,"ｋｇ"]
["え８１０ｌｓ",199,1156689007,"ボンドＥ８１０ＬＳ",7,null,"ｋｇ",null,null,"set",0,null,"ｋｇ"]
["え８１０ｌｗ",200,1156699007,"ボンドＥ８１０ＬＷ",7,null,"ｋｇ",null,null,"set",0,null,"ｋｇ"]
["えｋ２７０ｗ",201,1157498020,"ボンドＥＫ２７０Ｗ",20,null,"ｋｇ",null,null,"set",0,null,"ｋｇ"]
["えｍｓ２０",202,1156852020,"ボンドＥＭＳ２０",20,null,"ｋｇ",null,null,"set",0,null,"ｋｇ"]
["えうすめ",203,1158087116,"ボンドＥうすめ液",16,null,"Ｌ",null,null,"缶",0,null,"Ｌ"]
["ｆｒ",204,1161522104,"ボンドＦＲシール",4,null,"Ｌ",null,null,"set",0,null,"Ｌ"]
["ｆことｆ*",205,"1158084016*","ボンドＦコートＦ",16,null,"ｋｇ",null,null,"set",0,null,"ｋｇ","c"]
["ｆことｆ",206,1158084016,"ボンドＦコートＦ　Ｎ－７５",16,null,"ｋｇ",null,null,"set",0,null,"ｋｇ","c"]
["ｆこーとふすめ",207,1158085116,"ボンドＦコートＦ　うすめ液",16,null,"Ｌ",null,null,"缶",0,null,"Ｌ","c"]
["ｇ１０３１７０",208,1171380317,"ボンドＧ１０３",170,null,"ｍｌ",null,null,"箱",0,null,"ｍｌ"]
["ｇ１０３３",210,1152002003,"ボンドＧ１０３",3,null,"ｋｇ",null,null,"缶",0,null,"ｋｇ"]
["ｇ１０３１５",211,1152002015,"ボンドＧ１０３",15,null,"ｋｇ",null,null,"缶",0,null,"ｋｇ"]
["ｇ１０ｚ３",212,1146009003,"ボンドＧ１０Ｚ",3,null,"ｋｇ",null,null,"缶",0,null,"ｋｇ"]
["ｇ１１ｚ１５",213,1146053015,"ボンドＧ１１Ｚ",15,null,"ｋｇ",null,null,"缶",0,null,"ｋｇ"]
["ｇ１７１７０",214,1171315317,"ボンドＧ１７",170,null,"ｍｌ",null,null,"本",0,null,"ｍｌ"]
["ｇ１７ｚ３",215,1151062003,"ボンドＧ１７Ｚ",3,null,"ｋｇ",null,null,"缶",0,null,"ｋｇ"]
["ｇ１７すぷれ",216,1171365343,"ボンドＧ１７スプレー",430,null,"ｍｌ",null,null,"本",0,null,"ｍｌ"]
["ｇ２００２３",217,1152600003,"ボンドＧ２００２",3,null,"ｋｇ",null,null,"個",0,null,"ｋｇ"]
["ｇ７７００ん",218,1171302343,"ボンドＧ７７００Ｎ",430,null,"ｍｌ",null,null,"本",0,null,"ｍｌ"]
["ｇ７７ｚ",219,1146281333,"ボンドＧ７７Ｚ",330,null,"ｍｌ",null,null,"本",0,null,"ｍｌ"]
["ｇ９０００",221,1171855343,"ボンドＧ９０００",430,null,"ｍｌ",null,null,"本",0,null,"ｍｌ"]
["ｇｓ７０７",222,1151547014,"ボンドＧＳ７０７",14,null,"ｋｇ",null,null,"缶",0,null,"ｋｇ"]
["ｇくりや１７０",223,1171381317,"ボンドＧクリヤー",170,null,"ｍｌ",null,null,"本",0,null,"ｍｌ"]
["ｋ１０あ３",224,1136008003,"ボンドＫ１０Ａ",3,null,"ｋｇ",null,null,"缶",0,null,"ｋｇ"]
["ｋ１２０１７０",226,1171232317,"ボンドＫ１２０",170,null,"ｍｌ",null,null,"箱",0,null,"ｍｌ"]
["ｋ１２０３",227,1136520003,"ボンドＫ１２０",3,null,"ｋｇ",null,null,"set",0,null,"ｋｇ"]
["ｋｍｐ１０ｓ１４*",230,"1141469414*","ボンドＫＭＰ１０",14,null,"ｋｇ",null,null,"箱",{"$f":"E217*H217","v":0},null,{"$f":"IF(D217=\"\",\"\",G217)","v":"ｋｇ"}]
["ｋｍｐ１０ｗ１４*",231,"1141470414*","ボンドＫＭＰ１０",14,null,"ｋｇ",null,null,"箱",0,null,"ｋｇ"]
["ｋｍｐ１０ｓ１４",233,1141469414,"ボンドＫＭＰ１０Ｓ",14,null,"ｋｇ",null,null,"箱",0,null,"ｋｇ"]
["ｋｍｐ１０ｗ１４",235,1141470414,"ボンドＫＭＰ１０Ｗ",14,null,"ｋｇ",null,null,"箱",0,null,"ｋｇ"]
["く２０２",236,1142202015,"ボンドＫＵ２０２　エコボックス",15,null,"ｋｇ",null,null,"箱",0,null,"ｋｇ"]
["くか",237,1142573376,"ボンドＫＵ９２８Ｃ－Ｘ",760,null,"ｍｌ",null,null,"本",0,null,"ｍｌ"]
["１２",238,1142626376,"ボンドＫＵ９２８Ｃ－Ｘ２ｗａｙパック",760,null,"ｍｌ",null,null,"本",0,null,"ｍｌ"]
["く９２８ｒｓ１０*",239,"1142529104*","ボンドＫＵ９２８Ｒ",4,null,"Ｌ",null,null,"袋",0,null,"Ｌ"]
["く９２８ｒｗ１０*",240,"1142530010*","ボンドＫＵ９２８Ｒ",10,null,"ｋｇ",null,null,"缶",0,null,"ｋｇ"]
["く９２８ｒｓ１０",241,1142529010,"ボンドＫＵ９２８ＲＳ",10,null,"ｋｇ",null,null,"缶",0,null,"ｋｇ"]
["く９２８ｒｗ１０",242,1142530010,"ボンドＫＵ９２８ＲＷ",10,null,"ｋｇ",null,null,"缶",0,null,"ｋｇ"]
["く９９９あ",243,1142605360,"ボンドKU９９９　アプリパック",600,null,"ｍｌ",null,null,"本",0,null,"ｍｌ"]
["ｍｇ４７０",245,1370001470,"ボンドＭＧアンカーピン４７０",null,null,null,null,null,null,null,null,"本"]
["もｓ200ｂ",246,1159308333,"ボンドＭＯＳ２００硬化剤",333,null,"ｍｌ",null,null,"本",0,null,"ｍｌ"]
["もｓ200あ",247,1159307333,"ボンドＭＯＳ２００主剤",333,null,"ｍｌ",null,null,"本",0,null,"ｍｌ"]
["ｍｐｘぐれ*",248,"1162836333*","ボンドＭＰＸ－１　",333,null,"ｍｌ",null,null,"本",{"$f":"E232*H232","v":0},null,{"$f":"IF(D232=\"\",\"\",G232)","v":"ｍｌ"}]
["ｍｐｘほわ*",249,"1162837333*","ボンドＭＰＸ－１　",333,null,"ｍｌ",null,null,"本",{"$f":"E233*H233","v":0},null,{"$f":"IF(D233=\"\",\"\",G233)","v":"ｍｌ"}]
["ｍｐｘぐれ",250,1162837333,"ボンドＭＰＸ－１　グレー",333,null,"ｍｌ",null,null,"本",{"$f":"E234*H234","v":0},null,{"$f":"IF(D234=\"\",\"\",G234)","v":"ｍｌ"}]
["ｍｐｘほわ",251,1162836333,"ボンドＭＰＸ－１　ホワイト",333,null,"ｍｌ",null,null,"本",{"$f":"E235*H235","v":0},null,{"$f":"IF(D235=\"\",\"\",G235)","v":"ｍｌ"}]
["ｍｓちえん",252,1161563040,"ボンドＭＳ・ＦＲ・サイディング硬化遅延剤",40,null,"ｇ",null,null,"個",{"$f":"IF(A229=\"\",\"\",E236*H236)","v":0},null,"ｇ"]
["ｍっそくしん",253,1161560040,"ボンドＭＳ・ＦＲシール硬化促進剤",40,null,"ｇ",null,null,"個",{"$f":"IF(A230=\"\",\"\",E237*H237)","v":0},null,"ｇ"]
["おっぐらうと",254,1154176333,"ボンドＯＧグラウト",330,null,"ｍｌ",null,null,"本",{"$f":"E238*H238","v":0},null,{"$f":"IF(D238=\"\",\"\",G238)","v":"ｍｌ"}]
["ｐっそくしん",255,1161562050,"ボンドＰＳシール硬化促進剤",50,null,"ｇ",null,null,"個",0,null,"ｇ"]
["ｐｓちえん",256,1161561050,"ボンドＰＳシール硬化遅延剤",50,null,"ｇ",null,null,"個",0,null,"ｇ"]
["ｐｘ８０００",257,1162982365,"ボンドＰＸ８０００アプリパック",650,null,"ｍｌ",null,null,"本",0,null,"ｍｌ"]
["ｐもる*",258,"1157534003*","ボンドＰモルタル",12,null,"ｋｇ",null,null,"ｓｅｔ",0,null,"ｋｇ"]
["ｐもる",259,1157534003,"ボンドＰモルタル骨材",3,null,"ｋｇ",null,null,"袋",0,null,"ｋｇ"]
["ス２００",260,1144402333,"ボンドＳＵ２００　グレー",333,null,"ｍｌ",null,null,"本",0,null,"ｍｌ"]
["す２５",261,1144420333,"ボンドＳＵ２５",333,null,"ｍｌ",null,null,"本",0,null,"ｍｌ"]
["ｒ１",262,1191332252,"ボンドＴＭテープＲ１",10,null,"ｍ",null,null,"巻",0,null,"ｍ"]
["ｗ１",263,1191341200,"ボンドＴＭテープＷ１－２０",10,null,"ｍ",null,null,"巻",0,null,"ｍ"]
["うぐれ*",265,"1162015332*","ボンドＵコーク　ノンブリード",320,null,"ｍｌ",null,null,"本",0,null,"ｍｌ"]
["うほわ",266,1162014332,"ボンドＵコーク　ノンブリード　　ホワイト",320,null,"ｍｌ",null,null,"本",0,null,"ｍｌ"]
["うことｆ*",267,"1371341018*","ボンドＵコートＦ",18,null,"ｋｇ",null,null,"set",0,null,"ｋｇ"]
["うことｆ",268,1371341018,"ボンドＵコートＦ　Ｎ－７５",18,null,"ｋｇ",null,null,"set",0,null,"ｋｇ"]
["うことうすめ",269,1371357116,"ボンドＵコートうすめ液",16,null,"Ｌ",null,null,"缶",0,null,"Ｌ"]
["ｖｆ０５０ん５０",270,1181118402,"ボンドＶＦ０５０Ｎ－５０／２５ｍ",25,null,"ｍ",null,null,"巻",0,null,"ｍ"]
["ｖｆ４１５ｒ５０",271,1183415401,"ボンドＶＦ４１５Ｒ－５０",20,null,"ｍ",null,null,"巻",0,null,"ｍ"]
["ｖｍ３",272,1154333013,"ボンドＶＭ－３中塗り",13.5,null,"ｋｇ",null,null,"set",0,null,"ｋｇ"]
["ｖｍ３きしゃく",273,1154329227,"ボンドＶＭ－３中塗り希釈材",270,null,"ｇ",null,null,"缶",0,null,"ｇ"]
[null,275,1371697001,"ボンドＶＭネット",100,null,"ｍ",null,null,"巻",0,null,"ｍ"]
["ｖｍぷらいま",276,1154331004,"ボンドＶＭプライマー",4,null,"ｋｇ",null,null,"缶",0,null,"ｋｇ"]
["ｖｍそくしん",277,1154332280,"ボンドＶＭプライマー硬化促進材",800,null,"ｇ",null,null,"缶",0,null,"ｇ"]
["ｖｐこうか",278,1158504005,"ボンドＶＰセメント　硬化剤",5,null,"ｋｇ",null,null,"袋",0,null,"ｋｇ"]
["ｖｐしゅ*",280,1158503020,"ボンドＶＰセメントＬ",25,null,"ｋｇ",null,null,"set",0,null,"ｋｇ"]
["ｖｐしゅ",281,1158503020,"ボンドＶＰセメントＬ　主剤",20,null,"ｋｇ",null,null,"袋",0,null,"ｋｇ"]
["ｗｆ１１８２０",284,1192118200,"ボンドＷＦ１１８－２０",10,null,"ｍ",null,null,"巻",0,null,"ｍ"]
["ｗｆ４１５ｒ５０",285,1182415402,"ボンドＷＦ４１５Ｒ－５０",20,null,"ｍ",null,null,"巻",0,null,"ｍ"]
["あくあとっぷ",286,1154407016,"ボンドアクアトップコート",16,null,"ｋｇ",null,null,"缶",0,null,"ｋｇ"]
[null,287,1154408016,"ボンドアクアバインドＺⅡ",16,null,"ｋｇ",null,null,"缶",0,null,"ｋｇ"]
["あくほわ*",289,1162221533,"ボンドアクリルコークＮＢ　ホワイト",330,null,"ｍｌ",null,null,"本",0,null,"ｍｌ"]
["うれほわ*",293,"1162505332*","ボンドウレタンコーク　",320,null,"ｍｌ",null,null,"本",0,null,"ｍｌ"]
["おくがいようぱて",295,1171739312,"ボンド屋外用パテ",120,null,"ｍｌ",null,null,"本",0,null,"ｍｌ"]
["ｄｐ５０あるふぁ",296,1102011018,"ボンドカベクロスＤＰ５０α",18,null,"ｋｇ",null,null,"箱",0,null,"ｋｇ"]
["くい１",300,1159256001,"ボンドクイックメンダー",1,null,"ｋｇ",null,null,"set",0,null,"ｋｇ"]
["くいっくめんだ３０",301,1159274001,"ボンドクイックメンダー３０",1,null,"ｋｇ",null,null,"set",0,null,"ｋｇ"]
["こくほわ",302,1162004250,"ボンドコークホワイト",500,null,"ｇ",null,null,"本",0,null,"ｇ"]
["さい",303,1161611104,"ボンドサイディングシール",4,null,"Ｌ",null,null,"set",0,null,"Ｌ"]
["ｓｄｃぐれｇｒ*",304,"1161680027*","ボンドサイディングシール用カラーマスター　",160,null,"ｇ",null,null,"個",0,null,"ｇ"]
["しるからほわ*",305,"1161950013*","ボンドシールカラーマスター",160,null,"ｇ",null,null,"個",0,null,"ｇ"]
[null,306,1161950502,"ボンドシールカラーマスター　特注色",160,null,"ｇ",null,null,"個",0,null,"ｇ"]
["しるぷら１",307,1161937001,"ボンドシールプライマー＃１土木用",1,null,"ｋｇ",null,null,"缶",0,null,"ｋｇ"]
["しるぷら２",308,1161911250,"ボンドシールプライマー＃２",500,null,"ｇ",null,null,"缶",0,null,"ｇ"]
["しるぷら３",309,1161912230,"ボンドシールプライマー＃３",300,null,"ｇ",null,null,"缶",0,null,"ｇ"]
["しるぷら５",310,1161914250,"ボンドシールプライマー＃５",500,null,"ｇ",null,null,"缶",0,null,"ｇ"]
["しるぷら１００",311,1162726210,"ボンドシールプライマー＃７Ｎ",100,null,"ｇ",null,null,"缶",0,null,"ｇ"]
["しるぷらきわみ",313,1161871250,"ボンドシールプライマー極用",500,null,"ｇ",null,null,"缶",0,null,"ｇ"]
["しりんだみに",315,1371714200,"ボンドシリンダーセットミニ",null,null,null,null,null,null,{"$f":"IF(A284=\"\",\"\",E284*H284)","v":0},null,"ｓｅｔ"]
[null,316,1191702400,"ボンドストームガード　クリヤー　５０ｍｍ",2,null,"ｍ",null,null,"巻",{"$f":"E285*H285","v":0},null,"ｍ"]
["ｚ１",317,1171370343,"ボンドスプレーのりＺ－１",430,null,"ｍｌ",null,null,"本",0,null,{"$f":"IF(D286=\"\",\"\",G286)","v":"ｍｌ"}]
["ｚ２",318,1171371343,"ボンドスプレーのりＺ－２",430,null,"ｍｌ",null,null,"本",0,null,"ｍｌ"]
["ｚ３",319,1171375343,"ボンドスプレーのりＺ－３",430,null,"ｍｌ",null,null,"本",0,null,"ｍｌ"]
["ｓｈ６２０",320,1126050020,"ボンドタックＳＨ６",20,null,"ｋｇ",null,null,"箱",0,null,"ｋｇ"]
["きわみかん",321,1161870106,"ボンド土木用シール極",6,null,"Ｌ",null,null,"缶",0,null,"Ｌ"]
["きわみかと",322,1161870332,"ボンド土木用シール極",320,null,"ｍｌ",null,null,"本",0,null,"ｍｌ"]
["はいぐれ*",324,"1163063333*","ボンドハイパーコーク　",330,null,"ｍｌ",null,null,"本",0,null,"ｍｌ"]
["びゅそくしん",325,1161556030,"ボンドビューシール６９０９硬化促進剤",30,null,"ｇ",null,null,"個",0,null,"ｇ"]
["びゅちえん",326,1161565040,"ボンドポリウレタン系建築用硬化遅延剤",40,null,"ｇ",null,null,"個",0,null,"ｇ","ビューシール6909の遅延剤"]
["まいくろ",327,1154440260,"ボンドマイクロクラック補修用プライマー",600,null,"ｇ",null,null,"set",0,null,"ｇ"]
["もっこうあぷり",328,1101057250,"ボンド木工用アプリパック",500,null,"ｇ",null,null,"本",0,null,"ｇ"]
["ゆにえぽ０１",330,1156535004,"ボンドユニエポ０１",4,null,"ｋｇ",null,null,"缶",0,null,"ｋｇ"]
["ゆにえぽかぷせる４５０",331,1156556006,"ボンドユニエポカプセル４５０",0.6,null,"ｇ",null,null,"個",0,null,"ｇ"]
["ゆにえぽかぷせる４７０",332,1156557008,"ボンドユニエポカプセル４７０",0.8,null,"ｇ",null,null,"個",0,null,"ｇ"]
["ゆにえぽぱうだｃｇ１",333,1156533004,"ボンドユニエポパウダーＣＧ１",4,null,"ｋｇ",null,null,"袋",0,null,"ｋｇ"]
["れべるわん",334,1159511402,"ボンドレベルワン　アプリパック",2,null,"ｋｇ",null,null,"本",0,null,"ｋｇ"]
["ゆか",335,1142570360,"ボンド床職人ＫＵ９２８Ｃ－Ｘ　アプリパック",600,null,"ｍｌ",null,null,"本",0,null,"ｍｌ"]
["ぞうさく",336,1111914001,"ボンド造作ボンドＣＫ１１",1,null,"ｋｇ",null,null,"袋",0,null,"ｋｇ"]
["たいかぐれ*",337,"1162104333*","ボンド耐火目地用シーラント",333,null,"ｍｌ",null,null,"本",0,null,"ｍｌ"]
["たいかぐれ",338,1162104333,"ボンド耐火目地用シーラント　グレー",333,null,"ｍｌ",null,null,"本",0,null,"ｍｌ"]
["たいかほわ",339,1162103333,"ボンド耐火目地用シーラント　ホワイト",333,null,"ｍｌ",null,null,"本",0,null,"ｍｌ"]
["たいねつはけぬりｈｇ３",340,1146520003,"ボンド耐熱ハケ塗りＨＧ",3,null,"ｋｇ",null,null,"缶",0,null,"ｋｇ"]
["へんぐれ*",341,"1162702333*","ボンド変成シリコンコーク　",333,null,"ｍｌ",null,null,"本",0,null,"ｍｌ"]
["へんあい",342,1162706333,"ボンド変成シリコンコーク　アイボリー",333,null,"ｍｌ",null,null,"本",0,null,"ｍｌ"]
["へんぐれ",343,1162702333,"ボンド変成シリコンコーク　グレー",333,null,"ｍｌ",null,null,"本",0,null,"ｍｌ"]
["へんぶら",344,1162693333,"ボンド変成シリコンコーク　ブラック",333,null,"ｍｌ",null,null,"本",0,null,"ｍｌ"]
["へんぶろ",345,1162705333,"ボンド変成シリコンコーク　ブロンズ",333,null,"ｍｌ",null,null,"本",0,null,"ｍｌ"]
["へんほわ",346,1162703333,"ボンド変成シリコンコーク　ホワイト",333,null,"ｍｌ",null,null,"本",0,null,"ｍｌ"]
["へんらいとぐ",347,1162427333,"ボンド変成シリコンコーク　ライトグレー",333,null,"ｍｌ",null,null,"本",0,null,"ｍｌ"]
["へんｑぐれ*",348,"1164921333*","ボンド変成シリコンコークＱ　",333,null,"ｍｌ",null,null,"本",0,null,"ｍｌ"]
["へんｑちゅぶぐれ*",349,"1171534312*","ボンド変成シリコンコークＱチューブ　",120,null,"ｍｌ",null,null,"本",0,null,"ｍｌ"]
["ぼうすいしたじ",350,1163055332,"ボンド防水下地コークＱ　グレー",320,null,"ｍｌ",null,null,"本",0,null,"ｍｌ"]
["ぼうほわ*",351,"1162579333*","ボンド防黴剤入りシリコンコーク",330,null,"ｍｌ",null,null,"本",0,null,"ｍｌ"]
["ぼうあい",352,1162581333,"ボンド防黴剤入りシリコンコーク　アイボリー",330,null,"ｍｌ",null,null,"本",0,null,"ｍｌ"]
["ぼうくり",353,1162582333,"ボンド防黴剤入りシリコンコーク　クリヤー",330,null,"ｍｌ",null,null,"本",0,null,"ｍｌ"]
["ぼうそふあい",354,1162584333,"ボンド防黴剤入りシリコンコーク　ソフトアイボリー",330,null,"ｍｌ",null,null,"本",0,null,"ｍｌ"]
["ぼうだくあい",355,1162580333,"ボンド防黴剤入りシリコンコーク　ダークアイボリー",330,null,"ｍｌ",null,null,"本",0,null,"ｍｌ"]
["ぼうほわ",356,1162579333,"ボンド防黴剤入りシリコンコーク　ホワイト",330,null,"ｍｌ",null,null,"本",0,null,"ｍｌ"]
["ぼうらいとぐ",357,1162583333,"ボンド防黴剤入りシリコンコーク　ライトグレー",330,null,"ｍｌ",null,null,"本",0,null,"ｍｌ"]
["ｈｇ４",358,1101614800,"ボンド木工用ＨＧ４",1000,null,"ｋｇ",null,null,"基",0,null,"ｋｇ"]
[null,359,1154470016,"ボンドＶＭネットレス中塗り",16,null,"ｋｇ",null,null,"set",0,null,"ｋｇ"]
[null,360,1154473004,"ボンドＶＭネットレス下塗り",4,null,"ｋｇ",null,null,"袋",{"$f":"E327*H327","v":0},null,{"$f":"IF(D327=\"\",\"\",G327)","v":"ｋｇ"}]
[null,361,1154489006,"ボンドＶＭクリア",6,null,"ｋｇ",null,null,"set",0,null,"ｋｇ"]
[null,363,1154510006,"ボンドＶＭ－４",6.6,null,"ｋｇ",null,null,"set",0,null,"ｋｇ"]
[null,364,1158129006,"ボンドＥ２５８ＲＳ",6,null,"ｋｇ",null,null,"set",0,null,"ｋｇ"]
[null,365,1158132006,"ボンドＥ２５８ＲＷ",6,null,"ｋｇ",null,null,"set",0,null,"ｋｇ"]
[null,366,"1163460250*","ボンドスーパージョイントＸ",500,null,"ｇ",null,null,"本",0,null,"ｇ"]
[null,367,1163460250,"ボンドスーパージョイントＸ　ホワイト",500,null,"ｇ",null,null,"本",0,null,"ｇ"]
[null,368,1163461250,"ボンドスーパージョイントＸ　ライトアイボリー",500,null,"ｇ",null,null,"本",0,null,"ｇ"]
[null,369,1163462250,"ボンドスーパージョイントＸ　アイボリー",500,null,"ｇ",null,null,"本",0,null,"ｇ"]
[null,370,1163463250,"ボンドスーパージョイントＸ　ベージュ",500,null,"ｇ",null,null,"本",0,null,"ｇ"]
[null,371,1163464250,"ボンドスーパージョイントＸ　ニューベージュ",500,null,"ｇ",null,null,"本",0,null,"ｇ"]
[null,372,1163465250,"ボンドスーパージョイントＸ　ペールホワイト",500,null,"ｇ",null,null,"本",0,null,"ｇ"]
[null,373,1163466250,"ボンドスーパージョイントＸ　ラワン",500,null,"ｇ",null,null,"本",0,null,"ｇ"]
[null,374,1163467250,"ボンドスーパージョイントＸ　木材",500,null,"ｇ",null,null,"本",0,null,"ｇ"]
[null,375,1163468250,"ボンドスーパージョイントＸ　ブライトブラウン",500,null,"ｇ",null,null,"本",0,null,"ｇ"]
[null,376,1163469250,"ボンドスーパージョイントＸ　ライトブラウン",500,null,"ｇ",null,null,"本",0,null,"ｇ"]
[null,377,1163480250,"ボンドスーパージョイントＸ　レッドブラウン",500,null,"ｇ",null,null,"本",0,null,"ｇ"]
[null,378,1163481250,"ボンドスーパージョイントＸ　ダークブラウン",500,null,"ｇ",null,null,"本",0,null,"ｇ"]
[null,379,1163482250,"ボンドスーパージョイントＸ　ブラウン",500,null,"ｇ",null,null,"本",0,null,"ｇ"]
[null,380,1163483250,"ボンドスーパージョイントＸ　バーチ",500,null,"ｇ",null,null,"本",0,null,"ｇ"]
[null,381,1163484250,"ボンドスーパージョイントＸ　ダークセピア",500,null,"ｇ",null,null,"本",0,null,"ｇ"]
[null,382,1163485250,"ボンドスーパージョイントＸ　ミディアムブラウン",500,null,"ｇ",null,null,"本",0,null,"ｇ"]
[null,383,1163486250,"ボンドスーパージョイントＸ　チェリーブラウン",500,null,"ｇ",null,null,"本",{"$f":"E349*H349","v":0},null,{"$f":"IF(D349=\"\",\"\",G349)","v":"ｇ"}]
[null,384,1163487250,"ボンドスーパージョイントＸ　ホワイトグレー",500,null,"ｇ",null,null,"本",{"$f":"E350*H350","v":0},null,{"$f":"IF(D350=\"\",\"\",G350)","v":"ｇ"}]
[null,385,1163488234,"ボンドスーパージョイントＸ　クリア",340,null,"ｇ",null,null,"本",{"$f":"E351*H351","v":0},null,{"$f":"IF(D351=\"\",\"\",G351)","v":"ｇ"}]
[null,386,1162107234,"ボンド塗装下地コーク　ノンブリード　クリア",340,null,"ｇ",null,null,"本",{"$f":"E352*H352","v":0},null,{"$f":"IF(D352=\"\",\"\",G352)","v":"ｇ"}]
[null,387,1162108250,"ボンド塗装下地コーク　ノンブリード　ホワイト",500,null,"ｇ",null,null,"本",{"$f":"E353*H353","v":0},null,{"$f":"IF(D353=\"\",\"\",G353)","v":"ｇ"}]
[null,388,1141469602,"ボンドＫＭＰ１０Ｓ　アプリパック　ヘラ付き",2,null,"ｋｇ",null,null,"本",0,null,"ｋｇ"]
[null,389,1141470602,"ボンドＫＭＰ１０Ｗ　アプリパック　ヘラ付き",2,null,"ｋｇ",null,null,"本",0,null,"ｋｇ"]
[null,390,"1141469602*","ボンドＫＭＰ１０　アプリパック　ヘラ付き",2,null,"ｋｇ",null,null,"本",0,null,"ｋｇ"]
[null,391,"1141470602*","ボンドＫＭＰ１０　アプリパック　ヘラ付き",2,null,"ｋｇ",null,null,"本",0,null,"ｋｇ"]
[null,392,1154513221,"ボンドＶＭ－４　促進希釈剤",215,null,"ｇ",null,null,"缶",0,null,"ｇ"]
[null,393,1371803012,"エフモル０５",12.5,null,"ｋｇ",null,null,"袋",0,null,"ｋｇ"]
[null,394,1371803020,"エフモル０５",20,null,"ｋｇ",null,null,"袋",0,null,"ｋｇ"]
[null,395,1159256250,"ボンドクイックメンダー",500,null,"ｇ",null,null,"set",{"$f":"E361*H361","v":0},null,{"$f":"IF(D361=\"\",\"\",G361)","v":"ｇ"}]
[null,396,1160034002,"ボンドエフレックスタイルワン　ソフトＣ３アプリパック　グレー",2,null,"ｋｇ",null,null,"袋",0,null,"ｋｇ"]
[null,397,1160035002,"ボンドエフレックスタイルワン　ソフトＣ３アプリパック　ライトグレー",2,null,"ｋｇ",null,null,"袋",0,null,"ｋｇ"]
[null,398,1160036002,"ボンドエフレックスタイルワン　ソフトＣ３アプリパック　ダークグレー",2,null,"ｋｇ",null,null,"袋",0,null,"ｋｇ"]
[null,399,"1160034002*","ボンドエフレックスタイルワン　ソフトＣ３アプリパック",2,null,"ｋｇ",null,null,"袋",0,null,"ｋｇ"]
[null,400,1162848333,"ボンドＭＰＸ－７",333,null,"ｍｌ",null,null,"本",0,null,"ｍｌ"]
[null,401,1142577376,"ボンドネダボンドＫＵ－Ｘ",760,null,"ｍｌ",null,null,"本",0,null,"ｍｌ"]
[null,402,1160026002,"ボンドエフレックスタイルワン　アプリパック　ベージュ",2,null,"ｋｇ",null,null,"本",{"$f":"E368*H368","v":0},null,"ｋｇ"]
[null,403,1154518016,"ボンドソルバインド中塗り",16,null,"ｋｇ",null,null,"袋",0,null,"ｋｇ"]
[null,404,1154519004,"ボンドソルバインドプライマー",4,null,"ｋｇ",null,null,"缶",0,null,"ｋｇ"]
[null,405,1154516012,"ボンドソルバインド　トップコート　主剤",12,null,"ｋｇ",null,null,"袋",0,null,"ｋｇ"]
[null,406,1154517003,"ボンドソルバインド　トップコート　硬化剤",3,null,"ｋｇ",null,null,"個",0,null,"ｋｇ"]
[null,407,1154409004,"ボンドアクアバインドプライマー",4,null,"ｋｇ",null,null,"缶",0,null,"ｋｇ"]
[null,408,1371637024,"ボンドＣＰアンカーピンＥ５３５　",null,null,null,null,null,null,0,null,"本"]
[null,409,1371642005,"ボンドＣＰアンカー５５０打ち込み棒ＦＨ－５５０ＴＭ",null,null,null,null,null,null,0,null,"個"]
[null,410,1371642007,"ボンドＣＰアンカー５７０打ち込み棒ＦＨ－５７０ＴＭ",null,null,null,null,null,null,0,null,"個"]
[null,411,1371642002,"ボンドＣＰアンカー６１０打ち込み棒ＦＨ－６１０",null,null,null,null,null,null,0,null,"個"]
[null,412,1370001450,"ボンドＭＧアンカーピン４５０",null,null,null,null,null,null,0,null,"個"]
[null,413,1161770104,"ボンドＳＡシール",4,null,"Ｌ",null,null,"set",0,null,"セット"]
[null,414,1159929002,"ボンドタイルワン　フロア用",2,null,"ｋｇ",null,null,"袋",0,null,"ｋｇ"]
[null,415,1160023002,"ボンドエフレックス　タイルワン　石材用　アプリパック",2,null,"ｋｇ",null,null,"袋",0,null,"ｋｇ"]
[null,416,1171488210,"ボンドクイックメンダー",100,null,"ｇ",null,null,"ｓｅｔ",0,null,"ｇ"]
[null,417,1371642008,"ボンドＣＰアンカー５３５打ち込み棒ＦＨ－５３５ＴＭ",null,null,null,null,null,null,0,null,"個"]
[null,418,1154412016,"ボンドアクアディフェンダー",16,null,"ｋｇ",null,null,"缶",0,null,"ｋｇ"]
[null,419,1161920250,"ボンドシールプライマー＃１１",500,null,"ｇ",null,null,"缶",0,null,"ｇ"]
[null,420,1163620332,"ボンド変成シリコンコーク　ＬＭ超耐久　ホワイト",320,null,"ｍｌ",null,null,"本",0,null,"ｍｌ"]
[null,421,1163621332,"ボンド変成シリコンコーク　ＬＭ超耐久　ライトグレー",320,null,"ｍｌ",null,null,"本",0,null,"ｍｌ"]
[null,422,1158060018,"ボンドＡＵトップ",18,null,"ｋｇ",null,null,"set",0,null,"ｋｇ"]
[null,423,1158061116,"ボンドＡＵトップうすめ液",16,null,"Ｌ",null,null,"缶",0,null,"Ｌ"]
[null,424,1156644008,"ボンドＥ３８０Ｆ",8,null,"ｋｇ",null,null,"set",0,null,"ｋｇ"]
[null,425,1156475010,"ボンドＥ３８０Ｗ",10,null,"ｋｇ",null,null,"set",0,null,"ｋｇ"]
[null,426,1111082018,"ＣＡＴ１８",18,null,"ｋｇ",null,null,"缶",0,null,"ｋｇ"]
[null,427,1154474280,"ボンドＶＭネットレス中塗り促進剤",800,null,"ｇ",null,null,"缶",0,null,"ｇ"]
[null,428,1154493260,"ボンドＶＭクリア希釈剤",600,null,"ｇ",null,null,"缶",0,null,"ｇ"]
[null,429,1366100106,"ＳＲシールＨ１００",6,null,"Ｌ",null,null,"缶",0,null,"Ｌ"]
[null,430,1366100333,"ＳＲシールＨ１００",333,null,"ｍｌ",null,null,"本",0,null,"ｍｌ"]
[null,431,1160119360,"ボンド床美人　ＰＸ２８０Ｃ－Ｘ　アプリパック",600,null,"ｍｌ",null,null,"本",0,null,"ｍｌ"]
[null,432,1366205501,"ＳＲシールＮＢ５０　シロ",320,null,"ｍｌ",null,null,"本",0,null,"ｍｌ"]
[null,433,1366207501,"ＳＲシールＮＢ５０　シロ",6,null,"Ｌ",null,null,"缶",0,null,"Ｌ"]
[null,434,1366205503,"ＳＲシールＮＢ５０　ライトグレー",320,null,"ｍｌ",null,null,"本",0,null,"ｍｌ"]
[null,435,1366207503,"ＳＲシールＮＢ５０　ライトグレー",6,null,"Ｌ",null,null,"缶",0,null,"Ｌ"]
[null,436,1161087008,"ボンドＵＰシール＃７００グレー",8,null,"ｋｇ",null,null,"set",{"$f":"E402*I402","v":0},null,{"$f":"IF(D402=\"\",\"\",H402)","v":0}]
[null,437,1161870385,"ボンド土木用シール極",850,null,"ｍｌ",null,null,"本",0,null,0]
[null,438,"1158055015*","ボンドＥ２３００Ｔ",15,null,"ｋｇ",null,null,"set",0,null,0]
[null,439,1158055015,"ボンドＥ２３００ＴＳ",15,null,"ｋｇ",null,null,"set",0,null,0]
[null,440,1158052015,"ボンドＥ２３００ＴＷ",15,null,"ｋｇ",null,null,"set",0,null,0]
[null,441,"1158129006*","ボンドＥ２５８Ｒ",6,null,"ｋｇ",null,null,"set",0,null,0]
[null,442,1156135020,"ボンドＥ３８０",20,null,"ｋｇ",null,null,"set",0,null,0]
[null,443,1156849008,"ボンドＥＭＳセグメントシール",8,null,"ｋｇ",null,null,"set",0,null,0]
[null,444,1154492004,"ボンドＶＭクリアプライマー",4,null,"ｋｇ",null,null,"缶",0,null,0]
[null,445,1371957001,"ボンドＨＳネット",100,null,"ｍ",null,null,"巻",0,null,0]
[null,446,1162450333,"ボンド変成シリコンコーク　クリヤー",333,null,"ｍｌ",null,null,"本",0,null,"ｍｌ"]
[null,447,1156036002,"ボンドＥ２５０",2,null,"ｋｇ",null,null,"set",0,null,"ｋｇ"]
[null,448,1156036006,"ボンドＥ２５０",6,null,"ｋｇ",null,null,"set",0,null,"ｋｇ"]
[null,449,1161780104,"ボンド土間目地シールＱ",4,null,"Ｌ",null,null,"set",0,null,{"$f":"IF(D415=\"\",\"\",G415)","v":"Ｌ"}]
[null,450,1157528005,"ボンドＴモルタル",5,null,"ｋｇ",null,null,"袋",0,null,"ｋｇ"]

{"sheet":"シール保証書（作成見本）","index":4,"n_rows":92,"n_cols":43,"rows_kept":92,"cut":false,"hidden":false,"merged":[[61,2,61,5],[61,8,61,14],[66,5,66,12],[90,2,91,2],[90,3,90,5],[90,6,91,6],[90,8,91,15],[0,27,3,37],[55,2,55,5],[55,8,55,25],[56,2,56,5],[56,8,56,25],[15,2,15,5],[15,8,15,14],[20,5,20,12],[44,2,45,2],[44,3,44,5],[44,6,45,6],[44,8,45,15],[12,2,12,5],[12,8,12,25],[13,2,13,5],[13,8,13,25],[58,2,58,5],[58,8,58,25],[59,2,59,5],[59,8,59,25],[60,2,60,5],[57,2,57,5],[57,8,57,25],[46,0,47,25],[49,17,49,24],[51,0,51,7],[52,9,52,10],[52,0,52,8],[14,2,14,5],[11,8,11,25],[0,0,1,25],[3,17,3,24],[5,0,5,7],[9,2,9,5],[9,8,9,25],[10,2,10,5],[10,8,10,25],[11,2,11,5],[6,9,6,10],[6,0,6,8]]}
["保　　証　　書",null,null,null,null,null,null,null,null,null,null,null,null,null,null,null,null,null,null,null,null,null,null,null,null,null,null,{"$f":"IF(入力シート!C16=\"\",\"\",\"宛名違い有り　　              　　　　　　　　　　　　　↓参照\")","v":""},null,null,null,null,null,null,null,null,null,null,null,null,null,1]
[null,null,null,null,null,null,null,null,null,null,null,null,null,null,null,null,null,null,null,null,null,null,null,null,null,null,null,null,null,null,null,null,null,null,null,null,null,null,null,null,null,1]
[null,null,null,null,null,null,null,null,null,null,null,null,null,null,null,null,null,null,null,null,null,null,null,null,null,null,null,null,null,null,null,null,null,null,null,null,null,null,null,null,null,1]
["　",null,null,null,null,null,null,null,null,null,null,null,null,null,null,null,null,{"$f":"IF(入力シート!C18=\"\",\"　　年　　 月　　 日\",入力シート!C18)","v":"　　年　　 月　　 日"},null,null,null,null,null,null,null,null,null,null,null,null,null,null,null,null,null,null,null,null,null,null,null,1]
[null,null,null,null,null,null,null,null,null,null,null,null,null,null,null,null,null,null,null,null,null,null,null,null,null,null,null,null,null,null,null,null,null,null,null,null,null,null,null,null,null,1]
[null,null,null,null,null,null,null,null,null,null,null,null,null,null,null,null,null,null,null,null,null,null,null,null,null,null,null,null,null,null,null,null,null,null,null,null,null,null,null,null,null,1]
[{"$f":"入力シート!C14","v":0},null,null,null,null,null,null,null,null,{"$f":"入力シート!D14","v":"御中"},null,null,null,null,null,null,null,null,null,null,null,null,null,null,null,null,null,null,null,null,null,null,null,null,null,null,null,null,null,null,null,1]
[null,null,null,null,null,null,null,null,null,null,null,null,null,null,null,null,null,null,null,null,null,null,null,null,null,null,null,null,null,null,null,null,null,null,null,null,null,null,null,null,null,1]
[null,null,null,null,null,null,null,null,null,null,null,null,null,null,null,null,null,null,null,null,null,null,null,null,null,null,null,null,null,null,null,null,null,null,null,null,null,null,null,null,null,1]
[null,null,"工事名称",null,null,null,null,"：",{"$f":"入力シート!C13","v":0},null,null,null,null,null,null,null,null,null,null,null,null,null,null,null,null,null,null,null,null,null,null,null,null,null,null,null,null,null,null,null,null,1]
[null,null,"現場住所",null,null,null,null,"：",{"$f":"入力シート!C19","v":0},null,null,null,null,null,null,null,null,null,null,null,null,null,null,null,null,null,null,null,null,null,null,null,null,null,null,null,null,null,null,null,null,1]
[null,null,"施工箇所",null,null,null,null,"：",{"$f":"入力シート!C20","v":0},null,null,null,null,null,null,null,null,null,null,null,null,null,null,null,null,null,null,null,null,null,null,null,null,null,null,null,null,null,null,null,null,1]
[null,null,"施工仕様・施工量",null,null,null,null,"：",{"$f":"入力シート!C21","v":0},null,null,null,null,null,null,null,null,null,null,null,null,null,null,null,null,null,null,null,null,null,null,null,null,null,null,null,null,null,null,null,null,1]
[null,null,"使用材料・使用量",null,null,null,null,"：",{"$f":"入力シート!C22","v":0},null,null,null,null,null,null,null,null,null,null,null,null,null,null,null,null,null,null,null,null,null,null,null,null,null,null,null,null,null,null,null,null,1]
[null,null,"保証内容",null,null,null,null,"：","防水機能の維持（漏水に至るはく離・破断を生じないこと）",null,null,null,null,null,null,null,null,null,null,null,null,null,null,null,null,null,null,null,null,null,null,null,null,null,null,null,null,null,null,null,null,1]
[null,null,"保証期間",null,null,null,null,"：",{"$f":"入力シート!C23","v":"00:00:00"},null,null,null,null,null,null,{"$f":"入力シート!C24","v":0},"年間",null,null,null,null,null,null,null,null,null,null,null,null,null,null,null,null,null,null,null,null,null,null,null,null,1]
[null,null,null,null,null,null,null,null,null,null,null,null,null,null,null,null,null,null,null,null,null,null,null,null,null,null,null,null,null,null,null,null,null,null,null,null,null,null,null,null,null,1]
[null,null,"　 上記シーリング工事に関し、防水保証期間内にシーリング材のはく離・破断が原因で、",null,null,null,null,null,null,null,null,null,null,null,null,null,null,null,null,null,null,null,null,null,null,null,null,null,null,null,null,null,null,null,null,null,null,null,null,null,null,1]
[null,null,"室内漏水事故が生じた場合、当事者が立会って原因を調査し、協議の上、当方に過失",null,null,null,null,null,null,null,null,null,null,null,null,null,null,null,null,null,null,null,null,null,null,null,null,null,null,null,null,null,null,null,null,null,null,null,null,null,null,1]
[null,null,"のある場合は該当箇所を補修いたします。",null,null,null,null,null,null,null,null,null,null,null,null,null,null,null,null,null,null,null,null,null,null,null,null,null,null,null,null,null,null,null,null,null,null,null,null,null,null,1]
[null,null,"　 なお、施工は",null,null,{"$f":"入力シート!C15","v":0},null,null,null,null,null,null,null," 、材料に関しての欠陥はコニシ株式会社",null,null,null,null,null,null,null,null,null,null,null,null,null,null,null,null,null,null,null,null,null,null,null,null,null,null,null,1]
[null,null,"の責任と致します。但し、下記の事項につきましては、免責とさせて頂きます。",null,null,null,null,null,null,null,null,null,null,null,null,null,null,null,null,null,null,null,null,null,null,null,null,null,null,null,null,null,null,null,null,null,null,null,null,null,null,1]
[null,null,null,null,null,null,null,null,null,null,null,null,null,null,null,null,null,null,null,null,null,null,null,null,null,null,null,null,null,null,null,null,null,null,null,null,null,null,null,null,null,1]
[null,null,null,null,"（１）","天変地異、及びその他不可抗力による場合。",null,null,null,null,null,null,null,null,null,null,null,null,null,null,null,null,null,null,null,null,null,null,null,null,null,null,null,null,null,null,null,null,null,null,null,1]
[null,null,null,null,"（２）","構造上及び設計上の欠陥に起因する場合。",null,null,null,null,null,null,null,null,null,null,null,null,null,null,null,null,null,null,null,null,null,null,null,null,null,null,null,null,null,null,null,null,null,null,null,1]
[null,null,null,null,"（３）","材料の許容性能を超えて使用された場合。",null,null,null,null,null,null,null,null,null,null,null,null,null,null,null,null,null,null,null,null,null,null,null,null,null,null,null,null,null,null,null,null,null,null,null,1]
[null,null,null,null,"（４）","施工部以外で生じた事故及び故意の損傷による場合。",null,null,null,null,null,null,null,null,null,null,null,null,null,null,null,null,null,null,null,null,null,null,null,null,null,null,null,null,null,null,null,null,null,null,null,1]
[null,null,null,null,"（５）","原因究明が通常の方法によっては困難と認められる場合。",null,null,null,null,null,null,null,null,null,null,null,null,null,null,null,null,null,null,null,null,null,null,null,null,null,null,null,null,null,null,null,null,null,null,null,1]
[null,null,null,null,null,null,null,null,null,null,null,null,null,null,null,null,null,null,null,null,null,null,null,null,null,null,null,null,null,null,null,null,null,null,null,null,null,null,null,null,null,1]
[null,null,null,null,null,null,null,null,null,null,null,null,null,null,null,null,null,null,null,null,null,null,null,null,null,null,null,null,null,null,null,null,null,null,null,null,null,null,null,null,null,1]
[null,null,null,"元請業者",null,null,null,null,null,null,null,null,null,null,null,null,null,null,null,null,null,null,null,null,null,null,null,null,null,null,null,null,null,null,null,null,null,null,null,null,null,1]
[null,null,null,null,null,null,null,null,null,null,null,null,null,null,null,null,null,null,null,null,null,null,null,null,null,null,null,null,null,null,null,null,null,null,null,null,null,null,null,null,null,1]
[null,null,null,null,null,null,null,null,null,null,null,null,null,null,null,null,null,null,null,null,null,null,null,null,null,null,null,null,null,null,null,null,null,null,null,null,null,null,null,null,null,1]
[null,null,null,null,null,null,null,null,null,null,null,null,null,null,null,null,null,null,null,null,null,null,null,null,null,null,null,null,null,null,null,null,null,null,null,null,null,null,null,null,null,1]
[null,null,null,null,null,null,null,null,null,null,null,null,null,null,null,null,null,null,null,null,null,null,null,null,null,null,null,null,null,null,null,null,null,null,null,null,null,null,null,null,null,1]
[null,null,null,"施工業者",null,null,null,null,null,null,null,null,null,null,null,null,null,null,null,null,null,null,null,null,null,null,null,null,null,null,null,null,null,null,null,null,null,null,null,null,null,1]
[null,null,null,null,null,null,null,null,null,null,null,null,null,null,null,null,null,null,null,null,null,null,null,null,null,null,null,null,null,null,null,null,null,null,null,null,null,null,null,null,null,1]
[null,null,null,null,null,null,null,null,null,null,null,null,null,null,null,null,null,null,null,null,null,null,null,null,null,null,null,null,null,null,null,null,null,null,null,null,null,null,null,null,null,1]
[null,null,null,null,null,null,null,null,null,null,null,null,null,null,null,null,null,null,null,null,null,null,null,null,null,null,null,null,null,null,null,null,null,null,null,null,null,null,null,null,null,1]
[null,null,null,null,null,null,null,null,null,null,null,null,null,null,null,null,null,null,null,null,null,null,null,null,null,null,null,null,null,null,null,null,null,null,null,null,null,null,null,null,null,1]
[null,null,null,"材料製造業者",null,null,null,null,null,null,null,null,null,null,null,null,null,null,null,null,null,null,null,null,null,null,null,null,null,null,null,null,null,null,null,null,null,null,null,null,null,1]
[null,null,null,null,null,null,null,null,null,null,null,null,null,null,null,null,null,null,null,null,null,null,null,null,null,null,null,null,null,null,null,null,null,null,null,null,null,null,null,null,null,1]
[null,null,null,null,null,null,null,null,null,null,null,null,null,null,null,null,null,null,null,null,null,null,null,null,null,null,null,null,null,null,null,null,null,null,null,null,null,null,null,null,null,1]
[null,null,null,null,null,null,null,null,null,null,null,null,null,null,null,null,null,null,null,null,null,null,null,null,null,null,null,null,null,null,null,null,null,null,null,null,null,null,null,null,null,1]
[null,null,"〔","使用弊社材料",null,null,"〕",null,null,null,null,null,null,null,null,null,null,null,null,null,null,null,null,null,null,null,null,null,null,null,null,null,null,null,null,null,null,null,null,null,null,1]
[null,null,null,"のみの保証",null,null,null,null,null,null,null,null,null,null,null,null,null,null,null,null,null,null,null,null,null,null,null,null,null,null,null,null,null,null,null,null,null,null,null,null,null,1]
["保　　証　　書",null,null,null,null,null,null,null,null,null,null,null,null,null,null,null,null,null,null,null,null,null,null,null,null,null,null,null,null,null,null,null,null,null,null,null,null,null,null,null,null,{"$f":"IF(AQ47=\"\",\"\",1)","v":""},{"$f":"$AQ$92","v":""}]
[null,null,null,null,null,null,null,null,null,null,null,null,null,null,null,null,null,null,null,null,null,null,null,null,null,null,null,null,null,null,null,null,null,null,null,null,null,null,null,null,null,"",""]
[null,null,null,null,null,null,null,null,null,null,null,null,null,null,null,null,null,null,null,null,null,null,null,null,null,null,null,null,null,null,null,null,null,null,null,null,null,null,null,null,null,"",""]
["　",null,null,null,null,null,null,null,null,null,null,null,null,null,null,null,null,{"$f":"IF(入力シート!C18=\"\",\"　　年　　 月　　 日\",入力シート!C18)","v":"　　年　　 月　　 日"},null,null,null,null,null,null,null,null,null,null,null,null,null,null,null,null,null,null,null,null,null,null,null,"",""]
[null,null,null,null,null,null,null,null,null,null,null,null,null,null,null,null,null,null,null,null,null,null,null,null,null,null,null,null,null,null,null,null,null,null,null,null,null,null,null,null,null,"",""]
[null,null,null,null,null,null,null,null,null,null,null,null,null,null,null,null,null,null,null,null,null,null,null,null,null,null,null,null,null,null,null,null,null,null,null,null,null,null,null,null,null,"",""]
[{"$f":"入力シート!C16&\"\"","v":""},null,null,null,null,null,null,null,null,{"$f":"入力シート!D16","v":"御中"},null,null,null,null,null,null,null,null,null,null,null,null,null,null,null,null,null,null,null,null,null,null,null,null,null,null,null,null,null,null,null,"",""]
[null,null,null,null,null,null,null,null,null,null,null,null,null,null,null,null,null,null,null,null,null,null,null,null,null,null,null,null,null,null,null,null,null,null,null,null,null,null,null,null,null,"",""]
[null,null,null,null,null,null,null,null,null,null,null,null,null,null,null,null,null,null,null,null,null,null,null,null,null,null,null,null,null,null,null,null,null,null,null,null,null,null,null,null,null,"",""]
[null,null,"工事名称",null,null,null,null,"：",{"$f":"入力シート!C13","v":0},null,null,null,null,null,null,null,null,null,null,null,null,null,null,null,null,null,null,null,null,null,null,null,null,null,null,null,null,null,null,null,null,"",""]
[null,null,"現場住所",null,null,null,null,"：",{"$f":"入力シート!C19","v":0},null,null,null,null,null,null,null,null,null,null,null,null,null,null,null,null,null,null,null,null,null,null,null,null,null,null,null,null,null,null,null,null,"",""]
[null,null,"施工箇所",null,null,null,null,"：",{"$f":"入力シート!C20","v":0},null,null,null,null,null,null,null,null,null,null,null,null,null,null,null,null,null,null,null,null,null,null,null,null,null,null,null,null,null,null,null,null,"",""]
[null,null,"施工仕様・施工量",null,null,null,null,"：",{"$f":"入力シート!C21","v":0},null,null,null,null,null,null,null,null,null,null,null,null,null,null,null,null,null,null,null,null,null,null,null,null,null,null,null,null,null,null,null,null,"",""]
[null,null,"使用材料・使用量",null,null,null,null,"：",{"$f":"入力シート!C22","v":0},null,null,null,null,null,null,null,null,null,null,null,null,null,null,null,null,null,null,null,null,null,null,null,null,null,null,null,null,null,null,null,null,"",""]
[null,null,"保証内容",null,null,null,null,"：","防水機能の維持（漏水に至るはく離・破断を生じないこと）",null,null,null,null,null,null,null,null,null,null,null,null,null,null,null,null,null,null,null,null,null,null,null,null,null,null,null,null,null,null,null,null,"",""]
[null,null,"保証期間",null,null,null,null,"：",{"$f":"入力シート!C23","v":"00:00:00"},null,null,null,null,null,null,{"$f":"入力シート!C24","v":0},"年間",null,null,null,null,null,null,null,null,null,null,null,null,null,null,null,null,null,null,null,null,null,null,null,null,"",""]
[null,null,null,null,null,null,null,null,null,null,null,null,null,null,null,null,null,null,null,null,null,null,null,null,null,null,null,null,null,null,null,null,null,null,null,null,null,null,null,null,null,"",""]
[null,null,"　 上記シーリング工事に関し、防水保証期間内にシーリング材のはく離・破断が原因で、",null,null,null,null,null,null,null,null,null,null,null,null,null,null,null,null,null,null,null,null,null,null,null,null,null,null,null,null,null,null,null,null,null,null,null,null,null,null,"",""]
[null,null,"室内漏水事故が生じた場合、当事者が立会って原因を調査し、協議の上、当方に過失",null,null,null,null,null,null,null,null,null,null,null,null,null,null,null,null,null,null,null,null,null,null,null,null,null,null,null,null,null,null,null,null,null,null,null,null,null,null,"",""]
[null,null,"のある場合は該当箇所を補修いたします。",null,null,null,null,null,null,null,null,null,null,null,null,null,null,null,null,null,null,null,null,null,null,null,null,null,null,null,null,null,null,null,null,null,null,null,null,null,null,"",""]
[null,null,"　 なお、施工は",null,null,{"$f":"入力シート!C17&\"\"","v":""},null,null,null,null,null,null,null," 、材料に関しての欠陥はコニシ株式会社",null,null,null,null,null,null,null,null,null,null,null,null,null,null,null,null,null,null,null,null,null,null,null,null,null,null,null,"",""]
[null,null,"の責任と致します。但し、下記の事項につきましては、免責とさせて頂きます。",null,null,null,null,null,null,null,null,null,null,null,null,null,null,null,null,null,null,null,null,null,null,null,null,null,null,null,null,null,null,null,null,null,null,null,null,null,null,"",""]
[null,null,null,null,null,null,null,null,null,null,null,null,null,null,null,null,null,null,null,null,null,null,null,null,null,null,null,null,null,null,null,null,null,null,null,null,null,null,null,null,null,"",""]
[null,null,null,null,"（１）","天変地異、及びその他不可抗力による場合。",null,null,null,null,null,null,null,null,null,null,null,null,null,null,null,null,null,null,null,null,null,null,null,null,null,null,null,null,null,null,null,null,null,null,null,"",""]
[null,null,null,null,"（２）","構造上及び設計上の欠陥に起因する場合。",null,null,null,null,null,null,null,null,null,null,null,null,null,null,null,null,null,null,null,null,null,null,null,null,null,null,null,null,null,null,null,null,null,null,null,"",""]
[null,null,null,null,"（３）","材料の許容性能を超えて使用された場合。",null,null,null,null,null,null,null,null,null,null,null,null,null,null,null,null,null,null,null,null,null,null,null,null,null,null,null,null,null,null,null,null,null,null,null,"",""]
[null,null,null,null,"（４）","施工部以外で生じた事故及び故意の損傷による場合。",null,null,null,null,null,null,null,null,null,null,null,null,null,null,null,null,null,null,null,null,null,null,null,null,null,null,null,null,null,null,null,null,null,null,null,"",""]
[null,null,null,null,"（５）","原因究明が通常の方法によっては困難と認められる場合。",null,null,null,null,null,null,null,null,null,null,null,null,null,null,null,null,null,null,null,null,null,null,null,null,null,null,null,null,null,null,null,null,null,null,null,"",""]
[null,null,null,null,null,null,null,null,null,null,null,null,null,null,null,null,null,null,null,null,null,null,null,null,null,null,null,null,null,null,null,null,null,null,null,null,null,null,null,null,null,"",""]
[null,null,null,null,null,null,null,null,null,null,null,null,null,null,null,null,null,null,null,null,null,null,null,null,null,null,null,null,null,null,null,null,null,null,null,null,null,null,null,null,null,"",""]
[null,null,null,"元請業者",null,null,null,null,null,null,null,null,null,null,null,null,null,null,null,null,null,null,null,null,null,null,null,null,null,null,null,null,null,null,null,null,null,null,null,null,null,"",""]
[null,null,null,null,null,null,null,null,null,null,null,null,null,null,null,null,null,null,null,null,null,null,null,null,null,null,null,null,null,null,null,null,null,null,null,null,null,null,null,null,null,"",""]
[null,null,null,null,null,null,null,null,null,null,null,null,null,null,null,null,null,null,null,null,null,null,null,null,null,null,null,null,null,null,null,null,null,null,null,null,null,null,null,null,null,"",""]
[null,null,null,null,null,null,null,null,null,null,null,null,null,null,null,null,null,null,null,null,null,null,null,null,null,null,null,null,null,null,null,null,null,null,null,null,null,null,null,null,null,"",""]
[null,null,null,null,null,null,null,null,null,null,null,null,null,null,null,null,null,null,null,null,null,null,null,null,null,null,null,null,null,null,null,null,null,null,null,null,null,null,null,null,null,"",""]
[null,null,null,"施工業者",null,null,null,null,null,null,null,null,null,null,null,null,null,null,null,null,null,null,null,null,null,null,null,null,null,null,null,null,null,null,null,null,null,null,null,null,null,"",""]
[null,null,null,null,null,null,null,null,null,null,null,null,null,null,null,null,null,null,null,null,null,null,null,null,null,null,null,null,null,null,null,null,null,null,null,null,null,null,null,null,null,"",""]
[null,null,null,null,null,null,null,null,null,null,null,null,null,null,null,null,null,null,null,null,null,null,null,null,null,null,null,null,null,null,null,null,null,null,null,null,null,null,null,null,null,"",""]
[null,null,null,null,null,null,null,null,null,null,null,null,null,null,null,null,null,null,null,null,null,null,null,null,null,null,null,null,null,null,null,null,null,null,null,null,null,null,null,null,null,"",""]
[null,null,null,null,null,null,null,null,null,null,null,null,null,null,null,null,null,null,null,null,null,null,null,null,null,null,null,null,null,null,null,null,null,null,null,null,null,null,null,null,null,"",""]
[null,null,null,"材料製造業者",null,null,null,null,null,null,null,null,null,null,null,null,null,null,null,null,null,null,null,null,null,null,null,null,null,null,null,null,null,null,null,null,null,null,null,null,null,"",""]
[null,null,null,null,null,null,null,null,null,null,null,null,null,null,null,null,null,null,null,null,null,null,null,null,null,null,null,null,null,null,null,null,null,null,null,null,null,null,null,null,null,"",""]
[null,null,null,null,null,null,null,null,null,null,null,null,null,null,null,null,null,null,null,null,null,null,null,null,null,null,null,null,null,null,null,null,null,null,null,null,null,null,null,null,null,"",""]
[null,null,null,null,null,null,null,null,null,null,null,null,null,null,null,null,null,null,null,null,null,null,null,null,null,null,null,null,null,null,null,null,null,null,null,null,null,null,null,null,null,"",""]
[null,null,"〔","使用弊社材料",null,null,"〕",null,null,null,null,null,null,null,null,null,null,null,null,null,null,null,null,null,null,null,null,null,null,null,null,null,null,null,null,null,null,null,null,null,null,"",""]
[null,null,null,"のみの保証",null,null,null,null,null,null,null,null,null,null,null,null,null,null,null,null,null,null,null,null,null,null,null,null,null,null,null,null,null,null,null,null,null,null,null,null,null,{"$f":"IF(AQ92=\"\",\"\",1)","v":""},{"$f":"IF(A53=\"\",\"\",1)","v":""}]

{"sheet":"エポ保証書（作成見本）","index":5,"n_rows":94,"n_cols":43,"rows_kept":94,"cut":false,"hidden":false,"merged":[[61,28,61,34],[66,5,66,12],[92,2,93,2],[92,3,92,5],[92,6,93,6],[92,8,93,15],[59,2,59,5],[59,8,59,25],[60,2,60,5],[60,8,60,25],[61,2,61,5],[61,8,61,14],[56,2,56,5],[56,8,56,25],[57,2,57,5],[57,8,57,25],[58,2,58,5],[58,8,58,25],[47,0,48,25],[50,17,50,24],[52,0,52,7],[53,11,53,12],[53,9,53,10],[53,0,53,8],[14,28,14,34],[19,5,19,12],[45,2,46,2],[45,3,45,5],[45,6,46,6],[45,8,46,15],[12,2,12,5],[12,8,12,25],[13,2,13,5],[13,8,13,25],[14,2,14,5],[14,8,14,14],[9,2,9,5],[9,8,9,25],[10,2,10,5],[10,8,10,25],[11,2,11,5],[11,8,11,25],[0,27,3,37],[0,0,1,25],[3,17,3,24],[5,0,5,7],[6,11,6,12],[6,9,6,10],[6,0,6,8]]}
["保　　証　　書",null,null,null,null,null,null,null,null,null,null,null,null,null,null,null,null,null,null,null,null,null,null,null,null,null,null,{"$f":"IF(入力シート!C30=\"\",\"\",\"宛名違い有り　　              　　　　　　　　　　　　　↓参照\")","v":""},null,null,null,null,null,null,null,null,null,null,null,null,null,1]
[null,null,null,null,null,null,null,null,null,null,null,null,null,null,null,null,null,null,null,null,null,null,null,null,null,null,null,null,null,null,null,null,null,null,null,null,null,null,null,null,null,1]
[null,null,null,null,null,null,null,null,null,null,null,null,null,null,null,null,null,null,null,null,null,null,null,null,null,null,null,null,null,null,null,null,null,null,null,null,null,null,null,null,null,1]
["　",null,null,null,null,null,null,null,null,null,null,null,null,null,null,null,"　",{"$f":"IF(入力シート!C32=\"\",\"　　年　　 月　　 日\",入力シート!C32)","v":"　　年　　 月　　 日"},null,null,null,null,null,null,null,null,null,null,null,null,null,null,null,null,null,null,null,null,null,null,null,1]
[null,null,null,null,null,null,null,null,null,null,null,null,null,null,null,null,null,null,null,null,null,null,null,null,null,null,null,null,null,null,null,null,null,null,null,null,null,null,null,null,null,1]
[null,null,null,null,null,null,null,null,null,null,null,null,null,null,null,null,null,null,null,null,null,null,null,null,null,null,null,null,null,null,null,null,null,null,null,null,null,null,null,null,null,1]
[{"$f":"入力シート!C28","v":0},null,null,null,null,null,null,null,null,{"$f":"入力シート!D28","v":"御中"},null,null,null,null,null,null,null,null,null,null,null,null,null,null,null,null,null,null,null,null,null,null,null,null,null,null,null,null,null,null,null,1]
[null,null,null,null,null,null,null,null,null,null,null,null,null,null,null,null,null,null,null,null,null,null,null,null,null,null,null,null,null,null,null,null,null,null,null,null,null,null,null,null,null,1]
[null,null,null,null,null,null,null,null,null,null,null,null,null,null,null,null,null,null,null,null,null,null,null,null,null,null,null,null,null,null,null,null,null,null,null,null,null,null,null,null,null,1]
[null,null,"工事名称",null,null,null,null,"：",{"$f":"入力シート!C27","v":""},null,null,null,null,null,null,null,null,null,null,null,null,null,null,null,null,null,null,null,null,null,null,null,null,null,null,null,null,null,null,null,null,1]
[null,null,"現場住所",null,null,null,null,"：",{"$f":"入力シート!C33","v":0},null,null,null,null,null,null,null,null,null,null,null,null,null,null,null,null,null,null,null,null,null,null,null,null,null,null,null,null,null,null,null,null,1]
[null,null,"施工箇所",null,null,null,null,"：",{"$f":"入力シート!C34","v":0},null,null,null,null,null,null,null,null,null,null,null,null,null,null,null,null,null,null,null,null,null,null,null,null,null,null,null,null,null,null,null,null,1]
[null,null,"施工仕様・施工量",null,null,null,null,"：",{"$f":"入力シート!C35","v":0},null,null,null,null,null,null,null,null,null,null,null,null,null,null,null,null,null,null,null,null,null,null,null,null,null,null,null,null,null,null,null,null,1]
[null,null,"使用材料・使用量",null,null,null,null,"：",{"$f":"入力シート!C36","v":0},null,null,null,null,null,null,null,null,null,null,null,null,null,null,null,null,null,null,null,null,null,null,null,null,null,null,null,null,null,null,null,null,1]
[null,null,"保証期間",null,null,null,null,"：",{"$f":"入力シート!C37","v":"00:00:00"},null,null,null,null,null,null,{"$f":"入力シート!C38","v":0},"年間",null,null,null,null,null,null,null,null,null,null,null,null,null,null,null,null,null,null,null,null,null,null,null,null,1]
[null,null,null,null,null,null,null,null,null,null,null,null,null,null,null,null,null,null,null,null,null,null,null,null,null,null,null,null,null,null,null,null,null,null,null,null,null,null,null,null,null,1]
[null,null,null,null,null,null,null,null,null,null,null,null,null,null,null,null,null,null,null,null,null,null,null,null,null,null,null,null,null,null,null,null,null,null,null,null,null,null,null,null,null,1]
[null,null,"　 上記工事に関し、保証期間内に施工箇所に欠陥等が生じた場合、当事者が立会って",null,null,null,null,null,null,null,null,null,null,null,null,null,null,null,null,null,null,null,null,null,null,null,null,null,null,null,null,null,null,null,null,null,null,null,null,null,null,1]
[null,null,"原因を調査し、協議の上、当方に過失のある場合は該当箇所を補修いたします。",null,null,null,null,null,null,null,null,null,null,null,null,null,null,null,null,null,null,null,null,null,null,null,null,null,null,null,null,null,null,null,null,null,null,null,null,null,null,1]
[null,null,"　 なお、施工は",null,null,{"$f":"入力シート!C29","v":0},null,null,null,null,null,null,null," 、材料に関しての欠陥はコニシ株式会社",null,null,null,null,null,null,null,null,null,null,null,null,null,null,null,null,null,null,null,null,null,null,null,null,null,null,null,1]
[null,null,"の責任と致します。但し、下記の事項につきましては、免責とさせて頂きます。",null,null,null,null,null,null,null,null,null,null,null,null,null,null,null,null,null,null,null,null,null,null,null,null,null,null,null,null,null,null,null,null,null,null,null,null,null,null,1]
[null,null,null,null,null,null,null,null,null,null,null,null,null,null,null,null,null,null,null,null,null,null,null,null,null,null,null,null,null,null,null,null,null,null,null,null,null,null,null,null,null,1]
[null,null,null,null,"（１）","天変地異、及びその他不可抗力による場合。",null,null,null,null,null,null,null,null,null,null,null,null,null,null,null,null,null,null,null,null,null,null,null,null,null,null,null,null,null,null,null,null,null,null,null,1]
[null,null,null,null,"（２）","構造上及び設計上の欠陥に起因する場合。",null,null,null,null,null,null,null,null,null,null,null,null,null,null,null,null,null,null,null,null,null,null,null,null,null,null,null,null,null,null,null,null,null,null,null,1]
[null,null,null,null,"（３）","材料の許容性能を超えて使用された場合。",null,null,null,null,null,null,null,null,null,null,null,null,null,null,null,null,null,null,null,null,null,null,null,null,null,null,null,null,null,null,null,null,null,null,null,1]
[null,null,null,null,"（４）","施工部以外で生じた事故及び故意の損傷による場合。",null,null,null,null,null,null,null,null,null,null,null,null,null,null,null,null,null,null,null,null,null,null,null,null,null,null,null,null,null,null,null,null,null,null,null,1]
[null,null,null,null,"（５）","原因究明が通常の方法によっては困難と認められる場合。",null,null,null,null,null,null,null,null,null,null,null,null,null,null,null,null,null,null,null,null,null,null,null,null,null,null,null,null,null,null,null,null,null,null,null,1]
[null,null,null,null,null,null,null,null,null,null,null,null,null,null,null,null,null,null,null,null,null,null,null,null,null,null,null,null,null,null,null,null,null,null,null,null,null,null,null,null,null,1]
[null,null,null,null,null,null,null,null,null,null,null,null,null,null,null,null,null,null,null,null,null,null,null,null,null,null,null,null,null,null,null,null,null,null,null,null,null,null,null,null,null,1]
[null,null,null,"元請業者",null,null,null,null,null,null,null,null,null,null,null,null,null,null,null,null,null,null,null,null,null,null,null,null,null,null,null,null,null,null,null,null,null,null,null,null,null,1]
[null,null,null,null,null,null,null,null,null,null,null,null,null,null,null,null,null,null,null,null,null,null,null,null,null,null,null,null,null,null,null,null,null,null,null,null,null,null,null,null,null,1]
[null,null,null,null,null,null,null,null,null,null,null,null,null,null,null,null,null,null,null,null,null,null,null,null,null,null,null,null,null,null,null,null,null,null,null,null,null,null,null,null,null,1]
[null,null,null,null,null,null,null,null,null,null,null,null,null,null,null,null,null,null,null,null,null,null,null,null,null,null,null,null,null,null,null,null,null,null,null,null,null,null,null,null,null,1]
[null,null,null,null,null,null,null,null,null,null,null,null,null,null,null,null,null,null,null,null,null,null,null,null,null,null,null,null,null,null,null,null,null,null,null,null,null,null,null,null,null,1]
[null,null,null,null,null,null,null,null,null,null,null,null,null,null,null,null,null,null,null,null,null,null,null,null,null,null,null,null,null,null,null,null,null,null,null,null,null,null,null,null,null,1]
[null,null,null,"施工業者",null,null,null,null,null,null,null,null,null,null,null,null,null,null,null,null,null,null,null,null,null,null,null,null,null,null,null,null,null,null,null,null,null,null,null,null,null,1]
[null,null,null,null,null,null,null,null,null,null,null,null,null,null,null,null,null,null,null,null,null,null,null,null,null,null,null,null,null,null,null,null,null,null,null,null,null,null,null,null,null,1]
[null,null,null,null,null,null,null,null,null,null,null,null,null,null,null,null,null,null,null,null,null,null,null,null,null,null,null,null,null,null,null,null,null,null,null,null,null,null,null,null,null,1]
[null,null,null,null,null,null,null,null,null,null,null,null,null,null,null,null,null,null,null,null,null,null,null,null,null,null,null,null,null,null,null,null,null,null,null,null,null,null,null,null,null,1]
[null,null,null,null,null,null,null,null,null,null,null,null,null,null,null,null,null,null,null,null,null,null,null,null,null,null,null,null,null,null,null,null,null,null,null,null,null,null,null,null,null,1]
[null,null,null,null,null,null,null,null,null,null,null,null,null,null,null,null,null,null,null,null,null,null,null,null,null,null,null,null,null,null,null,null,null,null,null,null,null,null,null,null,null,1]
[null,null,null,"材料製造業者",null,null,null,null,null,null,null,null,null,null,null,null,null,null,null,null,null,null,null,null,null,null,null,null,null,null,null,null,null,null,null,null,null,null,null,null,null,1]
[null,null,null,null,null,null,null,null,null,null,null,null,null,null,null,null,null,null,null,null,null,null,null,null,null,null,null,null,null,null,null,null,null,null,null,null,null,null,null,null,null,1]
[null,null,null,null,null,null,null,null,null,null,null,null,null,null,null,null,null,null,null,null,null,null,null,null,null,null,null,null,null,null,null,null,null,null,null,null,null,null,null,null,null,1]
[null,null,null,null,null,null,null,null,null,null,null,null,null,null,null,null,null,null,null,null,null,null,null,null,null,null,null,null,null,null,null,null,null,null,null,null,null,null,null,null,null,1]
[null,null,"〔","使用弊社材料",null,null,"〕",null,null,null,null,null,null,null,null,null,null,null,null,null,null,null,null,null,null,null,null,null,null,null,null,null,null,null,null,null,null,null,null,null,null,1]
[null,null,null,"のみの保証",null,null,null,null,null,null,null,null,null,null,null,null,null,null,null,null,null,null,null,null,null,null,null,null,null,null,null,null,null,null,null,null,null,null,null,null,null,1]
["保　　証　　書",null,null,null,null,null,null,null,null,null,null,null,null,null,null,null,null,null,null,null,null,null,null,null,null,null,null,null,null,null,null,null,null,null,null,null,null,null,null,null,null,{"$f":"IF(AQ48=\"\",\"\",1)","v":""},{"$f":"$AQ$94","v":""}]
[null,null,null,null,null,null,null,null,null,null,null,null,null,null,null,null,null,null,null,null,null,null,null,null,null,null,null,null,null,null,null,null,null,null,null,null,null,null,null,null,null,"",{"$f":"$AQ$94","v":""}]
[null,null,null,null,null,null,null,null,null,null,null,null,null,null,null,null,null,null,null,null,null,null,null,null,null,null,null,null,null,null,null,null,null,null,null,null,null,null,null,null,null,"",""]
["　",null,null,null,null,null,null,null,null,null,null,null,null,null,null,null,"　",{"$f":"IF(入力シート!C32=\"\",\"　　年　　 月　　 日\",入力シート!C32)","v":"　　年　　 月　　 日"},null,null,null,null,null,null,null,null,null,null,null,null,null,null,null,null,null,null,null,null,null,null,null,"",""]
[null,null,null,null,null,null,null,null,null,null,null,null,null,null,null,null,null,null,null,null,null,null,null,null,null,null,null,null,null,null,null,null,null,null,null,null,null,null,null,null,null,"",""]
[null,null,null,null,null,null,null,null,null,null,null,null,null,null,null,null,null,null,null,null,null,null,null,null,null,null,null,null,null,null,null,null,null,null,null,null,null,null,null,null,null,"",""]
[{"$f":"入力シート!C30&\"\"","v":""},null,null,null,null,null,null,null,null,{"$f":"入力シート!D30","v":"御中"},null,null,null,null,null,null,null,null,null,null,null,null,null,null,null,null,null,null,null,null,null,null,null,null,null,null,null,null,null,null,null,"",""]
[null,null,null,null,null,null,null,null,null,null,null,null,null,null,null,null,null,null,null,null,null,null,null,null,null,null,null,null,null,null,null,null,null,null,null,null,null,null,null,null,null,"",""]
[null,null,null,null,null,null,null,null,null,null,null,null,null,null,null,null,null,null,null,null,null,null,null,null,null,null,null,null,null,null,null,null,null,null,null,null,null,null,null,null,null,"",""]
[null,null,"工事名称",null,null,null,null,"：",{"$f":"入力シート!C27","v":""},null,null,null,null,null,null,null,null,null,null,null,null,null,null,null,null,null,null,null,null,null,null,null,null,null,null,null,null,null,null,null,null,"",""]
[null,null,"現場住所",null,null,null,null,"：",{"$f":"入力シート!C33","v":0},null,null,null,null,null,null,null,null,null,null,null,null,null,null,null,null,null,null,null,null,null,null,null,null,null,null,null,null,null,null,null,null,"",""]
[null,null,"施工箇所",null,null,null,null,"：",{"$f":"入力シート!C34","v":0},null,null,null,null,null,null,null,null,null,null,null,null,null,null,null,null,null,null,null,null,null,null,null,null,null,null,null,null,null,null,null,null,"",""]
[null,null,"施工仕様・施工量",null,null,null,null,"：",{"$f":"入力シート!C35","v":0},null,null,null,null,null,null,null,null,null,null,null,null,null,null,null,null,null,null,null,null,null,null,null,null,null,null,null,null,null,null,null,null,"",""]
[null,null,"使用材料・使用量",null,null,null,null,"：",{"$f":"入力シート!C36","v":0},null,null,null,null,null,null,null,null,null,null,null,null,null,null,null,null,null,null,null,null,null,null,null,null,null,null,null,null,null,null,null,null,"",""]
[null,null,"保証期間",null,null,null,null,"：",{"$f":"入力シート!C37","v":"00:00:00"},null,null,null,null,null,null,{"$f":"入力シート!C38","v":0},"年間",null,null,null,null,null,null,null,null,null,null,null,null,null,null,null,null,null,null,null,null,null,null,null,null,"",""]
[null,null,null,null,null,null,null,null,null,null,null,null,null,null,null,null,null,null,null,null,null,null,null,null,null,null,null,null,null,null,null,null,null,null,null,null,null,null,null,null,null,"",""]
[null,null,null,null,null,null,null,null,null,null,null,null,null,null,null,null,null,null,null,null,null,null,null,null,null,null,null,null,null,null,null,null,null,null,null,null,null,null,null,null,null,"",""]
[null,null,"　 上記工事に関し、保証期間内に施工箇所に欠陥等が生じた場合、当事者が立会って",null,null,null,null,null,null,null,null,null,null,null,null,null,null,null,null,null,null,null,null,null,null,null,null,null,null,null,null,null,null,null,null,null,null,null,null,null,null,"",""]
[null,null,"原因を調査し、協議の上、当方に過失のある場合は該当箇所を補修いたします。",null,null,null,null,null,null,null,null,null,null,null,null,null,null,null,null,null,null,null,null,null,null,null,null,null,null,null,null,null,null,null,null,null,null,null,null,null,null,"",""]
[null,null,"　 なお、施工は",null,null,{"$f":"入力シート!C31&\"\"","v":""},null,null,null,null,null,null,null," 、材料に関しての欠陥はコニシ株式会社",null,null,null,null,null,null,null,null,null,null,null,null,null,null,null,null,null,null,null,null,null,null,null,null,null,null,null,"",""]
[null,null,"の責任と致します。但し、下記の事項につきましては、免責とさせて頂きます。",null,null,null,null,null,null,null,null,null,null,null,null,null,null,null,null,null,null,null,null,null,null,null,null,null,null,null,null,null,null,null,null,null,null,null,null,null,null,"",""]
[null,null,null,null,null,null,null,null,null,null,null,null,null,null,null,null,null,null,null,null,null,null,null,null,null,null,null,null,null,null,null,null,null,null,null,null,null,null,null,null,null,"",""]
[null,null,null,null,"（１）","天変地異、及びその他不可抗力による場合。",null,null,null,null,null,null,null,null,null,null,null,null,null,null,null,null,null,null,null,null,null,null,null,null,null,null,null,null,null,null,null,null,null,null,null,"",""]
[null,null,null,null,"（２）","構造上及び設計上の欠陥に起因する場合。",null,null,null,null,null,null,null,null,null,null,null,null,null,null,null,null,null,null,null,null,null,null,null,null,null,null,null,null,null,null,null,null,null,null,null,"",""]
[null,null,null,null,"（３）","材料の許容性能を超えて使用された場合。",null,null,null,null,null,null,null,null,null,null,null,null,null,null,null,null,null,null,null,null,null,null,null,null,null,null,null,null,null,null,null,null,null,null,null,"",""]
[null,null,null,null,"（４）","施工部以外で生じた事故及び故意の損傷による場合。",null,null,null,null,null,null,null,null,null,null,null,null,null,null,null,null,null,null,null,null,null,null,null,null,null,null,null,null,null,null,null,null,null,null,null,"",""]
[null,null,null,null,"（５）","原因究明が通常の方法によっては困難と認められる場合。",null,null,null,null,null,null,null,null,null,null,null,null,null,null,null,null,null,null,null,null,null,null,null,null,null,null,null,null,null,null,null,null,null,null,null,"",""]
[null,null,null,null,null,null,null,null,null,null,null,null,null,null,null,null,null,null,null,null,null,null,null,null,null,null,null,null,null,null,null,null,null,null,null,null,null,null,null,null,null,"",""]
[null,null,null,null,null,null,null,null,null,null,null,null,null,null,null,null,null,null,null,null,null,null,null,null,null,null,null,null,null,null,null,null,null,null,null,null,null,null,null,null,null,"",""]
[null,null,null,"元請業者",null,null,null,null,null,null,null,null,null,null,null,null,null,null,null,null,null,null,null,null,null,null,null,null,null,null,null,null,null,null,null,null,null,null,null,null,null,"",""]
[null,null,null,null,null,null,null,null,null,null,null,null,null,null,null,null,null,null,null,null,null,null,null,null,null,null,null,null,null,null,null,null,null,null,null,null,null,null,null,null,null,"",""]
[null,null,null,null,null,null,null,null,null,null,null,null,null,null,null,null,null,null,null,null,null,null,null,null,null,null,null,null,null,null,null,null,null,null,null,null,null,null,null,null,null,"",""]
[null,null,null,null,null,null,null,null,null,null,null,null,null,null,null,null,null,null,null,null,null,null,null,null,null,null,null,null,null,null,null,null,null,null,null,null,null,null,null,null,null,"",""]
[null,null,null,null,null,null,null,null,null,null,null,null,null,null,null,null,null,null,null,null,null,null,null,null,null,null,null,null,null,null,null,null,null,null,null,null,null,null,null,null,null,"",""]
[null,null,null,null,null,null,null,null,null,null,null,null,null,null,null,null,null,null,null,null,null,null,null,null,null,null,null,null,null,null,null,null,null,null,null,null,null,null,null,null,null,"",""]
[null,null,null,"施工業者",null,null,null,null,null,null,null,null,null,null,null,null,null,null,null,null,null,null,null,null,null,null,null,null,null,null,null,null,null,null,null,null,null,null,null,null,null,"",""]
[null,null,null,null,null,null,null,null,null,null,null,null,null,null,null,null,null,null,null,null,null,null,null,null,null,null,null,null,null,null,null,null,null,null,null,null,null,null,null,null,null,"",""]
[null,null,null,null,null,null,null,null,null,null,null,null,null,null,null,null,null,null,null,null,null,null,null,null,null,null,null,null,null,null,null,null,null,null,null,null,null,null,null,null,null,"",""]
[null,null,null,null,null,null,null,null,null,null,null,null,null,null,null,null,null,null,null,null,null,null,null,null,null,null,null,null,null,null,null,null,null,null,null,null,null,null,null,null,null,"",""]
[null,null,null,null,null,null,null,null,null,null,null,null,null,null,null,null,null,null,null,null,null,null,null,null,null,null,null,null,null,null,null,null,null,null,null,null,null,null,null,null,null,"",""]
[null,null,null,null,null,null,null,null,null,null,null,null,null,null,null,null,null,null,null,null,null,null,null,null,null,null,null,null,null,null,null,null,null,null,null,null,null,null,null,null,null,"",""]
[null,null,null,"材料製造業者",null,null,null,null,null,null,null,null,null,null,null,null,null,null,null,null,null,null,null,null,null,null,null,null,null,null,null,null,null,null,null,null,null,null,null,null,null,"",""]
[null,null,null,null,null,null,null,null,null,null,null,null,null,null,null,null,null,null,null,null,null,null,null,null,null,null,null,null,null,null,null,null,null,null,null,null,null,null,null,null,null,"",""]
[null,null,null,null,null,null,null,null,null,null,null,null,null,null,null,null,null,null,null,null,null,null,null,null,null,null,null,null,null,null,null,null,null,null,null,null,null,null,null,null,null,"",""]
[null,null,null,null,null,null,null,null,null,null,null,null,null,null,null,null,null,null,null,null,null,null,null,null,null,null,null,null,null,null,null,null,null,null,null,null,null,null,null,null,null,"",""]
[null,null,"〔","使用弊社材料",null,null,"〕",null,null,null,null,null,null,null,null,null,null,null,null,null,null,null,null,null,null,null,null,null,null,null,null,null,null,null,null,null,null,null,null,null,null,"",""]
[null,null,null,"のみの保証",null,null,null,null,null,null,null,null,null,null,null,null,null,null,null,null,null,null,null,null,null,null,null,null,null,null,null,null,null,null,null,null,null,null,null,null,null,"",{"$f":"IF(A54=\"\",\"\",1)","v":""}]

{"sheet":"試験成績書(依頼書)","index":6,"n_rows":23,"n_cols":32,"rows_kept":23,"cut":false,"hidden":false,"merged":[[10,26,11,53],[13,31,13,35],[13,36,13,52],[12,1,20,6],[13,7,13,11],[13,12,13,30],[10,1,11,20],[16,12,16,52],[17,10,17,24],[17,7,17,9],[17,49,17,51],[19,7,19,11],[19,12,19,39],[17,25,17,27],[8,1,8,12],[8,13,8,24],[8,25,8,27],[10,21,11,25],[17,28,17,39],[3,39,8,53],[3,28,3,38],[4,28,4,38],[5,28,5,38],[6,28,6,38],[7,28,7,38],[8,28,8,38],[15,7,15,9],[15,10,15,11],[15,12,15,17],[15,19,15,52],[21,1,22,6],[21,7,21,9],[21,10,21,15],[21,16,21,27],[22,7,22,9],[22,10,22,15],[22,16,22,19],[22,22,22,23],[22,26,22,27],[3,1,3,12],[3,13,3,24],[3,25,3,27],[7,13,7,24],[7,25,7,27],[4,1,4,12],[4,13,4,24],[4,25,4,27],[5,1,5,12],[5,13,5,24],[5,25,5,27],[6,1,6,12],[6,13,6,24],[6,25,6,27],[7,1,7,12],[0,1,0,53],[2,1,2,12],[2,13,2,24],[2,25,2,27],[2,28,2,53]]}
[" ","試験成績書　依頼書"]
["． 依頼内容",null,null,null,null,null,null,"※一行に一製品名を記入してください。"]
[null,"製　　　品　　　名",null,null,null,null,null,null,null,null,null,null,null,"ロ　ッ　ト　番　号",null,null,null,null,null,null,null,null,null,null,null,"部数",null,null,"備　考"]
[]
[]
[]
[]
[]
[]
[]
[null,null,null,null,null,null,null,null,null,null,null,null,null,null,null,null,null,null,null,null,null,"発送方法",null,null,null,null,"メール・レターパック（ライト）"]
[]
[null,"送　付　先　（直送する場合は住所まで記入してください。）"]
[null,null,null,null,null,null,null,"（企業名）",null,null,null,null,null,null,null,null,null,null,null,null,null,null,null,null,null,null,null,null,null,null,null," (担当者）"]
[]
[null,null,null,null,null,null,null,"（住所）",null,null,"〒"]
[]
[null,null,null,null,null,null,null,null,null,null,null,null,null,null,null,null,null,null,null,null,null,null,null,null,null,"(Tel)"]
[]
[null,null,null,null,null,null,null,"(Eメール)"]
[]
[null,"備　　　　考",null,null,null,null,null,"御中欄",null,null,"有 ・ 無 ",null,null,null,null,null,null,null,null,null,null,null,null,null,null,null,null,null,"御中・様・殿"]
[null,null,null,null,null,null,null,"日付欄",null,null,"有 ・ 無 ",null,null,null,null,null,null,null,null,null,"年",null,null,null,"月",null,null,null,"日"]